Workbook

Sheet K
A2: TOIMIVAN RATSASTUSKOULUN TILINPÄÄTÖSTEN ENNAKOINTI VIIDELLE VUODELLE
A4: Tällä laskentamallilla voit helposti laatia jo toimivalle ratsastuskoulullesi alustavan taloudellisen laskelman seuraavan viiden vuoden toiminnasta. Ratsastuskoulun lisäksi sinulla on mahdollisuus sisällyttää laskelmiin täysihoitoon otettuja hevosia. Syötä laskentaa varten malliin ensin tiedot ratsastuskoulusi viime tilinpäätöksen liikevaihdosta, taseen omaisuudesta ja poistoista, yrityksesi veroprosentista, velkojen koroista ja lyhennyksistä, sinun voitto-osuudestasi, rahoitusomaisuuden riittävästä määrästä sekä arvioi liikevaihdon ja kiinteiden kulujen kasvuprosentit ajanjaksolle. Syötä tämän jälkeen yrityksesi seuraavalle toimintavuodelle ennakoimasi tulot ja kulut, investoinnit ja rahoitus. Tässä laskentamallissa ei oteta huomioon arvonlisäveroa.
A6: Taulukossa on valmiina esimerkkinä kuvitteellisen toimivan ratsastuskoulun luvut. Tässä omissa tiloissaan toimivassa ratsastuskoulussa on opetuskäytössä 10 hevosta, jonka lisäksi tallilla on 5 hevosta täysihoidossa. Ratsastuskoulu rahoittaa toimintansa tulorahoituksen lisäksi lyhytaikaisella ja pitkäaikaisella velalla ja omalla pääomalla. Muuta taulukon vihreissä ruuduissa olevat esimerkkiluvut oman yrityksesi arvioiduiksi luvuiksi.
A8: Miten suuri ratsastuskoulusi liikevaihto oli viime tilinpäätöksessä (tuloslaskelmassa)? | F8: 200000 | G8: euroa | H8: =+IF(F8>=0,"","Luvun pitää olla positiivinen!") -> 
A10: Syötä viime tilinpäätöksen taseen tiedot niin, että omaisuuspuoli (vastaavaa) ja pääomapuoli (vastattavaa) ovat yhtä suuret (samat kuin taseessa).
A12: Omaisuuspuoli eli vastaavaa: lyhyt- ja pitkäaikainen omaisuus
F13: Taseen arvo
A14: Miten paljon viime tilinpäätöksen taseessa oli yhteensä rahoitusomaisuutta (kassa ja pankkitili) ja muuta lyhytaikaista omaisuutta? | F14: 10000 | G14: euroa | H14: =+IF(F14>=0,"","Luvun pitää olla positiivinen tai nolla!") -> 
A15: Laita tähän kaikki lyhytaikainen omaisuus taseesta (rahoitus-, vaihto ja muu lyhytaikainen omaisuus).
A17: Miten paljon viime tilinpäätöksen taseessa oli pitkäaikaista omaisuutta alla olevan jaon mukaisesti? Miten suuret poistot tästä pitkäaikaisesta omaisuudesta tehtiin tuloslaskelmassa? Laita jäljelle jäävät erät muuhun käyttöomaisuuteen.
A19: Huom! Ota omaisuuden todelliset luvut suoraan viimeisestä taseesta ja poistot viimeisestä tuloslaskelmasta! | F19: Taseen arvo | G19: Tehty poisto
A20: Taseen pitkäaikaiseen omaisuuteen kirjatut hevoset ja viime tuloslaskelmassa tehdyt poistot? | F20: 25000 | G20: 5000 | H20: =+IF(F20>=0,"","Luvun pitää olla positiivinen tai nolla!") -> 
A21: Taseen pitkäaikaiseen omaisuuteen kirjatut maa- ja vesialueet? | F21: 80000 | G21: 0
A22: Taseen pitkäaikaiseen omaisuuteen kirjatut rakennukset ja rakennelmat (esim. maneesi, talli)? | F22: 140000 | G22: 10000
A23: Taseen pitkäaikaiseen omaisuuteen kirjatut koneet ja kalusto (esim. traktori, hara, aura)? | F23: 15000 | G23: 5000
A24: Taseen pitkäaikaiseen omaisuuteen kirjattu muu käyttöomaisuus (esim. työkalut ja tarvikkeet)? | F24: 1500 | G24: 300
A26: Pääomapuoli eli vastattavaa: lyhyt- ja pitkäaikaiset velat (vieras pääoma) ja oma pääoma
A28: Jaa kaikki taseen pääomapuolella eli vastattavissa olevat erät lyhyt- ja pitkäaikaisiin velkoihin ja omaan pääomaan.
A29: (summan pitää vastata taseesn vastattavien summaa) | F29: Taseen arvo
A30: Miten paljon viime tilikauden taseessa oli lyhytaikaista (alle vuoden mittaista) velkaa? | F30: 20000 | G30: euroa | H30: =+IF(F30>=0,"","Luvun pitää olla positiivinen tai nolla!") -> 
A31: Miten paljon viime tilikauden taseessa oli pitkäaikaista (yli vuoden mittaista) velkaa? | F31: 210000 | G31: euroa
A32: Miten paljon viime tilikauden omassa pääomassa oli kertyneitä voittovaroja? | F32: 30000 | G32: euroa
A33: Miten paljon viime tilikauden omassa pääomassa oli muuta omaa pääomaa? (kaikki muut erät kuin kertyneet voittovarat) | F33: 11500 | G33: euroa
A35: Huomaa, että olet edellä ilmoittanut viime tilikauden taseen lyhyt- ja pitkäaikaiseksi omaisuudeksi yhteensä: | F35: =+F14+SUM(F20:F24) -> 271500 | G35: euroa
A36: Huomaa, että olet edellä ilmoittanut viime tilikauden taseen pääomaksi (oma ja vieras pääoma) yhteensä: | F36: =+SUM(F30:F33) -> 271500 | G36: euroa
A38: =+IF(F35=F36,"Viime tilinpäätöksen taseen omaisuus- ja pääomapuoli ovat kuten pitääkin yhtä suuret, joten jatka tietojen syöttämistä.","Viime tilinpäätöksen taseen omaisuus- ja pääomapuoli eivät ole yhtä suuria! Korjaa annettuja tietoja.") -> Viime tilinpäätöksen taseen omaisuus- ja pääomapuoli ovat kuten pitääkin yhtä suuret, joten jatka tietojen syöttämistä.
A40: Syötä sen jälkeen seuraavat laskennassa tarvittavat tiedot:
F41: Muut tiedot | G41: %-osuus
A42: Kuinka monta prosenttia yrityksesi maksaa veroja verotettavasta tuloksesta? (esim. osakeyhtiöillä verokanta on 20 % 2021) | F42: 20 | G42: =+F42/100 -> 0.2 | H42: =+IF(F42>=0,"","Luvun pitää olla positiivinen tai nolla!") -> 
A43: Miten korkea on yrityksesi lyhytaikaisen (alle vuoden mittaisen) velan vuotuinen korkoprosentti? | F43: 3 | G43: 0.03
A44: Miten korkea on yrityksesi pitkäaikaisen (yli vuoden mittaisen) velan vuotuinen korkoprosentti? | F44: 2 | G44: 0.02
A45: Miten monta prosenttia (suunnilleen) pitkäaikaisesta velasta maksetaan vuosittain takaisin? | F45: 15 | G45: 0.15
A46: Miten paljon aiot nostaa yrityksestä voitto-osuutta (esim. osinkoja) prosentteina yrityksen tuottamista kertyneistä voitoista? | F46: 5 | G46: 0.05
A47: Miten paljon vähintään aiot pitää varoja lyhytaikaisessa omaisuudessa toiminnan pyörittämistä varten prosentteina liikevaihdosta? | F47: 5 | G47: 0.05
A48: Miten monta prosenttia arvioit yrityksesi liikevaihdon kasvavan vuosittain seuraavien viiden vuoden aikana? | F48: 5 | G48: 0.05
A49: Miten monta prosenttia arvioit yrityksesi kiinteiden kustannusten kasvavan vuosittain seuraavien viiden vuoden aikana? | F49: 3 | G49: 0.03
A51: Laadi seuraavaksi arvio ratsastuskoulun seuraavan vuoden liikevaihdosta.
A53: Miten korkeaksi arvioit ratsastuskoulusi ratsastustunnin keskimääräisen hinnan? | F53: 27 | G53: euroa | H53: =+IF(F53>=0,"","Luvun pitää olla positiivinen tai nolla!") -> 
A54: Kuinka monta hevosta sinulla on ratsastuskoulutoiminnassa? | F54: 10 | G54: hevosta
A55: Kuinka monta tuntia keskimäärin hevonen osallistuu ratsastustunnille viikottain? (vuodessa on 52 viikkoa) | F55: 15 | G55: tuntia viikossa
A56: Montako hevosta on keskimäärin yhdessä opetusryhmässä? | F56: 6 | G56: hevosta
A57: Miten täysiksi arvioit opetusryhmät keskimäärin prosentteina 0 - 100 % (täydet ryhmät)? | F57: 85 | G57: %
A58: Miten monta hevosta keskimäärin on koulun hevosten lisäksi tallissa täysihoidossa? | F58: 5 | G58: hevosta
A59: Miten paljon arvioit täysihoidon hinnaksi hevosta kohti kuukaudessa? | F59: 600 | G59: euroa / kk
A60: Esittämiesi lukujen perusteella seuraavan vuoden liikevaihto siten seuraava: | F60: =+(F57/100)*(F53*F54*F55*52)+12*F58*F59 -> 215010 | G60: euroa
A62: Ratsastuskoulun seuraavan vuoden ennakoitu liikevaihto on: | F62: =+F60 -> 215010 | G62: euroa
A63: Huomaa, että antamillasi tiedoilla ratsastuskoulusi liikevaihdon ennakoitu kasvu viime tilikaudesta on: | F63: =100*(F62-F8)/F8 -> 7.505 | G63: %
A65: Kuinka monta ratsastustuntia tarkoituksesi on itse pitää (ilman palkanmaksua) ratsastuskoulun tunneista keskimäärin viikossa? | F65: 0 | G65: tuntia viikossa | H65: =+IF(F65>=0,"","Luvun pitää olla positiivinen tai nolla!") -> 
A67: Laadi sitten arvio yrityksen kulujen määrästä.
A69: Muuttuvat kulut:
A70: Millaisiksi arvioit seuraavan vuoden muuttuvat kulut, jotka riippuvat suoraan hevosten määrästä? | F70: Vuodessa: | G70: Liikevaih-dosta, %
A71: Miten paljon kulut karkearehusta ovat hevosta kohti kuukaudessa (euroa / hevonen / kuukausi)? | E71: 100 | F71: =+E71*(12*$F$54+12*$F$58) -> 18000 | G71: =100*F71/$F$62 -> 8.371703642 | H71: =+IF(F71>=0,"","Luvun pitää olla positiivinen tai nolla!") -> 
A72: Miten paljon kulut väkirehusta ovat hevosta kohti kuukaudessa (euroa / hevonen / kuukausi)? | E72: 20 | F72: =+E72*(12*$F$54+12*$F$58) -> 3600 | G72: 1.674340728
A73: Miten paljon kulut kivennäisistä ovat hevosta kohti kuukaudessa (euroa / hevonen / kuukausi)? | E73: 20 | F73: =+E73*(12*$F$54+12*$F$58) -> 3600 | G73: 1.674340728
A74: Miten paljon muut ruokintakulut ovat hevosta kohti kuukaudessa (euroa / hevonen / kuukausi)? | E74: 20 | F74: =+E74*(12*$F$54+12*$F$58) -> 3600 | G74: 1.674340728
A75: Miten paljon kuivikekulut ovat hevosta kohti kuukaudessa (euroa / hevonen / kuukausi)? | E75: 50 | F75: =+E75*(12*$F$54+12*$F$58) -> 9000 | G75: 4.185851821
A76: Miten paljon kengityskulut ovat hevosta kohti kuukaudessa (euroa / hevonen / kuukausi)? | E76: 50 | F76: =+E76*12*$F$54 -> 6000 | G76: 2.790567881
A77: Miten paljon madotuskulut ovat hevosta kohti vuodessa (euroa / hevonen / vuosi)? | E77: 50 | F77: =+E77*$F$54 -> 500 | G77: 0.2325473234
A78: Miten paljon rokotuskulut ovat hevosta kohti vuodessa (euroa / hevonen / vuosi)? | E78: 100 | F78: =+E78*$F$54 -> 1000 | G78: 0.4650946468
A79: Miten paljon raspauskulut ovat hevosta kohti vuodessa (euroa / hevonen / vuosi)? | E79: 100 | F79: =+E79*$F$54 -> 1000 | G79: 0.4650946468
A80: Miten paljon eläinlääkärikulut ovat hevosta kohti vuodessa (euroa / hevonen / vuosi)? | E80: 200 | F80: =+E80*$F$54 -> 2000 | G80: 0.9301892935
A81: Miten paljon varustekulut (esim. satulat, suitset) ovat hevosta kohti vuodessa (euroa / hevonen / vuosi)? | E81: 500 | F81: =+E81*$F$54 -> 5000 | G81: 2.325473234
A82: Miten paljon ratsastuksen opettajien palkat lisineen ovat opetustuntia kohti (tuntipalkka, euroa / tunti)? | E82: 35 | F82: =+E82*((F54*F55*52)/F56-F65*52) -> 45500 | G82: 21.16180643
A83: Miten paljon täysihoidon muuttuvat palkat lisineen (esim. hoitaja) ovat täysihoidossa olevaa hevosta kohti kuukaudessa? (euroa / hevonen / kuukausi) | E83: 200 | F83: =12*$F$58*E83 -> 12000 | G83: 5.581135761
A84: Miten paljon muut muuttuvat kulut (esim. tarvikkeet, vakuutukset) ovat hevosta kohti vuodessa (euroa / hevonen / vuosi)? | E84: 200 | F84: =+E84*$F$54 -> 2000 | G84: 0.9301892935
A85: Seuraavan vuoden ennakoitu myyntikate (liikevaihto - muuttuvat kulut) on: | F85: =+F62-SUM(F71:F84) -> 102210 | G85: 47.53732385
A87: Kiinteät kulut: | D87: =+IF(B87<0," Huom! Luvun pitää olla positiivinen tai nolla!","") -> 
A88: Millaisiksi arvioit seuraavan vuoden kiinteät kulut? | G88: Liikevaih-dosta, %
A89: Kuinka paljon arvioit vuokrakuluiksi kuukaudessa käyttämistäsi tiloista? (euroa / kuukausi) (jos vuokratiloja) | E89: 0 | F89: =12*E89 -> 0 | G89: =100*F89/$F$62 -> 0 | H89: =+IF(F89>=0,"","Luvun pitää olla positiivinen tai nolla!") -> 
A90: Kuinka paljon arvioit sähkön kulutuksen kuluiksi kuukaudessa? (euroa / kuukausi) | E90: 200 | F90: =12*E90 -> 2400 | G90: 1.116227152
A91: Kuinka paljon arvioit veden kulutuksen kuluiksi kuukaudessa? (euroa / kuukausi) | E91: 100 | F91: 1200 | G91: 0.5581135761
A92: Kuinka paljon arvioit pohjien huollon kuluiksi kuukaudessa (maneesi ja ratsastuskenttä)? (euroa / kuukausi) | E92: 250 | F92: 3000 | G92: 1.39528394
A93: Kuinka paljon arvioit lantalan tyhjennyksen kuluiksi kuukaudessa? (euroa / kuukausi) | E93: 100 | F93: 1200 | G93: 0.5581135761
A94: Kuinka suuriksi arvioit kiinteät palkkakustannukset lisineen (esim. tallityöntekijät, kirjanpitäjä) kuukaudessa? (euroa / kuukausi) | E94: 2000 | F94: 24000 | G94: 11.16227152
A95: Kuinka suuriksi arvioit muut edellä mainitsemattomat kiinteät kulut kuukaudessa? (euroa / kuukausi) | E95: 100 | F95: 1200 | G95: 0.5581135761
A96: Seuraavan vuoden ennakoitu käyttökate (liikevaihto - muuttuvat kulut - kiinteät kulut) on: | F96: =+F85-SUM(F89:F95) -> 69210 | G96: 32.1892005
A98: Esittämiesi lukujen perusteella arvioit ensimmäisen vuoden kuluiksi yhteensä: | F98: =+SUM(F71:F84)+SUM(F89:F95) -> 145800 | G98: 67.8107995
A99: =+IF(F99>0,"Esittämiesi lukujen perusteella liikevaihdon ja muuttuvien kulujen erotus (myyntikate) on:","Muuta antamiasi tietoja, sillä liikevaihdon ja muuttuvien kulujen erotus on negatiivinen:") -> Esittämiesi lukujen perusteella liikevaihdon ja muuttuvien kulujen erotus (myyntikate) on: | F99: =+F85 -> 102210 | G99: 47.53732385
A100: =+IF(F100>0,"Esittämiesi lukujen perusteella liikevaihdon ja kaikkien kulujen erotus (käyttökate) on:","Muuta antamiasi tietoja, sillä liikevaihdon ja kulujen erotus on negatiivinen:") -> Esittämiesi lukujen perusteella liikevaihdon ja kaikkien kulujen erotus (käyttökate) on: | F100: =+F96 -> 69210 | G100: 32.1892005
A102: Mahdolliset uudet (seuraavan vuoden) investoinnit (pitkäaikaiset sijoitukset) ratsastuskouluun:
A103: Miten paljon aiot investoida euroissa ratsastuskouluun seuraavana vuonna? | G103: Liikevaih-dosta, %
A104: Miten paljon aiot sijoittaa euroja uusien hevosten hankkimiseen ratsastuskoulun toimintaa varten? | F104: 5000 | G104: =100*F104/$F$62 -> 2.325473234 | H104: =+IF(F104>=0,"","Luvun pitää olla positiivinen tai nolla!") -> 
A105: Miten paljon aiot sijoittaa euroja maa- ja vesialueisiin? (esim. tontin ostamiseen) | F105: 0 | G105: 0
A106: Miten paljon aiot sijoittaa euroja rakennuksiin ja rakennelmiin? (esim. talli ja maneesi) | F106: 5000 | G106: 2.325473234
A107: Miten paljon aiot sijoittaa euroja koneisiin ja kalustoon (esim. traktori, hara, aura)? | F107: 10000 | G107: 4.650946468
A108: Miten paljon aiot sijoittaa euroja muuhun käyttöomaisuuteen (esim. työkalut, irtaimisto)? | F108: 500 | G108: 0.2325473234
A109: Esittämiesi lukujen perusteella sijoitat euroja yrityksesi uuteen omaisuuteen yhteensä: | F109: =+SUM(F104:F108) -> 20500 | G109: 9.534440259
A111: Ratsastuskoulun uusien investointien rahoitus:
A112: Millä tavalla aiot rahoittaa ratsastuskoulun seuraavan toimintavuoden investoinnit? | G112: Liikevaih-dosta, %
A113: Miten paljon aiot ottaa lisää lyhytaikaista velkaa toimintaa varten? (euroja) | D113: =+IF(C113<0," Huom! Luvun pitää olla positiivinen tai nolla!","") ->  | F113: 500 | G113: =100*F113/$F$62 -> 0.2325473234 | H113: =+IF(F113>=0,"","Luvun pitää olla positiivinen tai nolla!") -> 
A114: Miten paljon aiot ottaa lisää pitkäaikaista velkaa investointien rahoittamista varten? (euroja) | D114: =+IF(C114<0," Huom! Luvun pitää olla positiivinen tai nolla!","") ->  | F114: 15000 | G114: 6.976419701
A115: Miten paljon aiot sijoittaa toimintaan lisää omaa pääomaa? (euroja) | F115: 5000 | G115: 2.325473234
A116: Esittämiesi lukujen perusteella otat seuraavana vuonna velkaa ja sijoitat omaa pääomaa yritykseesi yhteensä: | F116: =+SUM(F113:F115) -> 20500 | G116: 9.534440259
A118: Sijoittamasi oman pääoman osuus uudesta pääomarahoituksesta on: | F118: =100*F115/F116 -> 24.3902439 | G118: %
A119: Sijoitetun uuden oman pääoman ja otetun uuden pitkäaikaisen velan osuus uusien investointien rahoituksesta on: | F119: =100*(F114+F115)/F109 -> 97.56097561 | G119: %
A122: MALLIN TUOTTAMAT TILINPÄÄTÖSLASKELMAT VIIDELLE VUODELLE
A124: =+T!B3 -> ENNAKOITU TULOSLASKELMA
B125: =+T!C4 -> Ennakoidut viisi vuotta:
B126: =+T!C5 -> 1 | C126: =+T!D5 -> 2 | D126: =+T!E5 -> 3 | E126: =+T!F5 -> 4 | F126: =+T!G5 -> 5
A127: =+T!B6 -> Liikevaihto | B127: =+T!C6 -> 215010 | C127: =+T!D6 -> 225760.5 | D127: =+T!E6 -> 237048.525 | E127: =+T!F6 -> 248900.9513 | F127: =+T!G6 -> 261345.9988
A128: =+T!B7 -> - Muuttuvat kulut
A129: =+T!B8 -> Karkearehu | B129: =+T!C8 -> 18000 | C129: =+T!D8 -> 18900 | D129: =+T!E8 -> 19845 | E129: =+T!F8 -> 20837.25 | F129: =+T!G8 -> 21879.1125
A130: =+T!B9 -> Väkirehu | B130: =+T!C9 -> 3600 | C130: =+T!D9 -> 3780 | D130: =+T!E9 -> 3969 | E130: =+T!F9 -> 4167.45 | F130: =+T!G9 -> 4375.8225
A131: =+T!B10 -> Kivennäiset | B131: =+T!C10 -> 3600 | C131: =+T!D10 -> 3780 | D131: =+T!E10 -> 3969 | E131: =+T!F10 -> 4167.45 | F131: =+T!G10 -> 4375.8225
A132: =+T!B11 -> Muut ruokintakustannukset | B132: =+T!C11 -> 3600 | C132: =+T!D11 -> 3780 | D132: =+T!E11 -> 3969 | E132: =+T!F11 -> 4167.45 | F132: =+T!G11 -> 4375.8225
A133: =+T!B12 -> Kuivikekustannukset | B133: =+T!C12 -> 9000 | C133: =+T!D12 -> 9450 | D133: =+T!E12 -> 9922.5 | E133: =+T!F12 -> 10418.625 | F133: =+T!G12 -> 10939.55625
A134: =+T!B13 -> Kengitykset | B134: =+T!C13 -> 6000 | C134: =+T!D13 -> 6300 | D134: =+T!E13 -> 6615 | E134: =+T!F13 -> 6945.75 | F134: =+T!G13 -> 7293.0375
A135: =+T!B14 -> Madotukset | B135: =+T!C14 -> 500 | C135: =+T!D14 -> 525 | D135: =+T!E14 -> 551.25 | E135: =+T!F14 -> 578.8125 | F135: =+T!G14 -> 607.753125
A136: =+T!B15 -> Rokotukset | B136: =+T!C15 -> 1000 | C136: =+T!D15 -> 1050 | D136: =+T!E15 -> 1102.5 | E136: =+T!F15 -> 1157.625 | F136: =+T!G15 -> 1215.50625
A137: =+T!B16 -> Raspaukset | B137: =+T!C16 -> 1000 | C137: =+T!D16 -> 1050 | D137: =+T!E16 -> 1102.5 | E137: =+T!F16 -> 1157.625 | F137: =+T!G16 -> 1215.50625
A138: =+T!B17 -> Muut eläinlääkärikulut | B138: =+T!C17 -> 2000 | C138: =+T!D17 -> 2100 | D138: =+T!E17 -> 2205 | E138: =+T!F17 -> 2315.25 | F138: =+T!G17 -> 2431.0125
A139: =+T!B18 -> Varustekustannukset | B139: =+T!C18 -> 5000 | C139: =+T!D18 -> 5250 | D139: =+T!E18 -> 5512.5 | E139: =+T!F18 -> 5788.125 | F139: =+T!G18 -> 6077.53125
A140: =+T!B19 -> Ratsastuksen opettajien palkat lisineen | B140: =+T!C19 -> 45500 | C140: =+T!D19 -> 47775 | D140: =+T!E19 -> 50163.75 | E140: =+T!F19 -> 52671.9375 | F140: =+T!G19 -> 55305.53438
A141: =+T!B20 -> Täyshoitohevosten hoitajien palkat lisineen | B141: =+T!C20 -> 12000 | C141: =+T!D20 -> 12600 | D141: =+T!E20 -> 13230 | E141: =+T!F20 -> 13891.5 | F141: =+T!G20 -> 14586.075
A142: =+T!B21 -> Muut muuttuvat kulut | B142: =+T!C21 -> 2000 | C142: =+T!D21 -> 2100 | D142: =+T!E21 -> 2205 | E142: =+T!F21 -> 2315.25 | F142: =+T!G21 -> 2431.0125
A143: =+T!B22 -> = Myyntikate | B143: =+T!C22 -> 102210 | C143: =+T!D22 -> 107320.5 | D143: =+T!E22 -> 112686.525 | E143: =+T!F22 -> 118320.8513 | F143: =+T!G22 -> 124236.8938
A144: =+T!B23 -> - Kiinteät kulut
A145: =+T!B24 -> Vuokrakulut | B145: =+T!C24 -> 0 | C145: =+T!D24 -> 0 | D145: =+T!E24 -> 0 | E145: =+T!F24 -> 0 | F145: =+T!G24 -> 0
A146: =+T!B25 -> Sähkökulut | B146: =+T!C25 -> 2400 | C146: =+T!D25 -> 2472 | D146: =+T!E25 -> 2546.16 | E146: =+T!F25 -> 2622.5448 | F146: =+T!G25 -> 2701.221144
A147: =+T!B26 -> Vesikulut | B147: =+T!C26 -> 1200 | C147: =+T!D26 -> 1236 | D147: =+T!E26 -> 1273.08 | E147: =+T!F26 -> 1311.2724 | F147: =+T!G26 -> 1350.610572
A148: =+T!B27 -> Pohjien huolto | B148: =+T!C27 -> 3000 | C148: =+T!D27 -> 3090 | D148: =+T!E27 -> 3182.7 | E148: =+T!F27 -> 3278.181 | F148: =+T!G27 -> 3376.52643
A149: =+T!B28 -> Lantalan tyhjennys | B149: =+T!C28 -> 1200 | C149: =+T!D28 -> 1236 | D149: =+T!E28 -> 1273.08 | E149: =+T!F28 -> 1311.2724 | F149: =+T!G28 -> 1350.610572
A150: =+T!B29 -> Kiinteät palkkakustannukset lisineen | B150: =+T!C29 -> 24000 | C150: =+T!D29 -> 24720 | D150: =+T!E29 -> 25461.6 | E150: =+T!F29 -> 26225.448 | F150: =+T!G29 -> 27012.21144
A151: =+T!B31 -> = Käyttökate | B151: =+T!C31 -> 69210 | C151: =+T!D31 -> 73330.5 | D151: =+T!E31 -> 77676.825 | E151: =+T!F31 -> 82260.86025 | F151: =+T!G31 -> 87095.10308
A152: =+T!B32 -> - Poistot
A153: =+T!B33 -> Hevosten hankinta | B153: =+T!C33 -> 5000 | C153: =+T!D33 -> 4166.666667 | D153: =+T!E33 -> 3472.222222 | E153: =+T!F33 -> 2893.518519 | F153: =+T!G33 -> 2411.265432
A154: =+T!B34 -> Maa- ja vesialueet | B154: =+T!C34 -> 0 | C154: =+T!D34 -> 0 | D154: =+T!E34 -> 0 | E154: =+T!F34 -> 0 | F154: =+T!G34 -> 0
A155: =+T!B35 -> Rakennukset ja rakennelmat | B155: =+T!C35 -> 9666.666667 | C155: =+T!D35 -> 9022.222222 | D155: =+T!E35 -> 8420.740741 | E155: =+T!F35 -> 7859.358025 | F155: =+T!G35 -> 7335.400823
A156: =+T!B36 -> Koneet ja kalusto | B156: =+T!C36 -> 6250 | C156: =+T!D36 -> 4687.5 | D156: =+T!E36 -> 3515.625 | E156: =+T!F36 -> 2636.71875 | F156: =+T!G36 -> 1977.539062
A157: =+T!B38 -> Muu käyttöomaisuus | B157: =+T!C38 -> 333.3333333 | C157: =+T!D38 -> 277.7777778 | D157: =+T!E38 -> 231.4814815 | E157: =+T!F38 -> 192.9012346 | F157: =+T!G38 -> 160.7510288
A158: =+T!B39 -> = Liiketulos | B158: =+T!C39 -> 47960 | C158: =+T!D39 -> 55176.33333 | D158: =+T!E39 -> 62036.75556 | E158: =+T!F39 -> 68678.36372 | F158: =+T!G39 -> 75210.14674
A159: =+T!B40 -> - Korkokulut | B159: =+T!C40 -> 5115 | C159: =+T!D40 -> 4785 | D159: =+T!E40 -> 4159.5 | E159: =+T!F40 -> 3627.825 | F159: =+T!G40 -> 3175.90125
A160: =+T!B41 -> - Verot | B160: =+T!C41 -> 8569 | C160: =+T!D41 -> 10078.26667 | D160: =+T!E41 -> 11575.45111 | E160: =+T!F41 -> 13010.10774 | F160: =+T!G41 -> 14406.8491
A161: =+T!B42 -> Tilikauden tulos | B161: =+T!C42 -> 34276 | C161: =+T!D42 -> 40313.06667 | D161: =+T!E42 -> 46301.80444 | E161: =+T!F42 -> 52040.43098 | F161: =+T!G42 -> 57627.39639
A163: =+T!B44 -> ENNAKOITU TASE
B164: =+T!C45 -> Ennakoidut viisi vuotta:
B165: =+T!C46 -> 1 | C165: =+T!D46 -> 2 | D165: =+T!E46 -> 3 | E165: =+T!F46 -> 4 | F165: =+T!G46 -> 5
A166: =+T!B47 -> Taseen omaisuus
A167: =+T!B48 -> Lyhytaikainen:
A168: =+T!B49 -> Rahoitusomaisuus ja muu lyhytaikainen omaisuus | B168: =+T!C49 -> 34026 | C168: =+T!D49 -> 58004.43333 | D168: =+T!E49 -> 88293.79389 | E168: =+T!F49 -> 124190.1185 | F168: =+T!G49 -> 165119.7957
A169: =+T!B50 -> Pitkäaikainen:
A170: =+T!B51 -> Hevosten hankinta | B170: =+T!C51 -> 25000 | C170: =+T!D51 -> 20833.33333 | D170: =+T!E51 -> 17361.11111 | E170: =+T!F51 -> 14467.59259 | F170: =+T!G51 -> 12056.32716
A171: =+T!B52 -> Maa- ja vesialueet | B171: =+T!C52 -> 80000 | C171: =+T!D52 -> 80000 | D171: =+T!E52 -> 80000 | E171: =+T!F52 -> 80000 | F171: =+T!G52 -> 80000
A172: =+T!B53 -> Rakennukset ja rakennelmat | B172: =+T!C53 -> 135333.3333 | C172: =+T!D53 -> 126311.1111 | D172: =+T!E53 -> 117890.3704 | E172: =+T!F53 -> 110031.0123 | F172: =+T!G53 -> 102695.6115
A173: =+T!B54 -> Koneet ja kalusto | B173: =+T!C54 -> 18750 | C173: =+T!D54 -> 14062.5 | D173: =+T!E54 -> 10546.875 | E173: =+T!F54 -> 7910.15625 | F173: =+T!G54 -> 5932.617188
A174: =+T!B56 -> Muu käyttöomaisuus | B174: =+T!C56 -> 1666.666667 | C174: =+T!D56 -> 1388.888889 | D174: =+T!E56 -> 1157.407407 | E174: =+T!F56 -> 964.5061728 | F174: =+T!G56 -> 803.755144
A175: =+T!B57 -> Yhteensä | B175: =+T!C57 -> 294776 | C175: =+T!D57 -> 300600.2667 | D175: =+T!E57 -> 315249.5578 | E175: =+T!F57 -> 337563.3859 | F175: =+T!G57 -> 366608.1067
A177: =+T!B59 -> Taseen pääoma
A178: =+T!B60 -> Lyhytaikainen:
A179: =+T!B61 -> Lyhytaikaiset velat (maks. voitto-osuus) | B179: =+T!C61 -> 3213.8 | C179: =+T!D61 -> 5068.763333 | D179: =+T!E61 -> 7130.415389 | E179: =+T!F61 -> 9375.916168 | F179: =+T!G61 -> 11788.49018
A180: =+T!B62 -> Muu lyhytaikainen vieras pääoma | B180: =+T!C62 -> 20500 | C180: =+T!D62 -> 20500 | D180: =+T!E62 -> 20500 | E180: =+T!F62 -> 20500 | F180: =+T!G62 -> 20500
A181: =+T!B63 -> Pitkäaikainen:
A182: =+T!B64 -> Pitkäaikainen vieras pääoma | B182: =+T!C64 -> 208500 | C182: =+T!D64 -> 177225 | D182: =+T!E64 -> 150641.25 | E182: =+T!F64 -> 128045.0625 | F182: =+T!G64 -> 108838.3031
A183: =+T!B65 -> Sijoitettu oma pääoma | B183: =+T!C65 -> 16500 | C183: =+T!D65 -> 16500 | D183: =+T!E65 -> 16500 | E183: =+T!F65 -> 16500 | F183: =+T!G65 -> 16500
A184: =+T!B66 -> Kertyneet voittovarat ja muu oma pääoma | B184: =+T!C66 -> 61062.2 | C184: =+T!D66 -> 96306.50333 | D184: =+T!E66 -> 135477.8924 | E184: =+T!F66 -> 178142.4072 | F184: =+T!G66 -> 223981.3134
A185: =+T!B67 -> Yhteensä | B185: =+T!C67 -> 309776 | C185: =+T!D67 -> 315600.2667 | D185: =+T!E67 -> 330249.5578 | E185: =+T!F67 -> 352563.3859 | F185: =+T!G67 -> 381608.1067
A187: =+T!B69 -> ENNAKOIDUT TUNNUSLUVUT
B188: =+T!C70 -> Ennakoidut viisi vuotta:
B189: =+T!C71 -> 1 | C189: =+T!D71 -> 2 | D189: =+T!E71 -> 3 | E189: =+T!F71 -> 4 | F189: =+T!G71 -> 5
A190: =+T!B72 -> Koko
A191: =+T!B73 -> 1. Liikevaihto (Euro) | B191: =+T!C73 -> 215010 | C191: =+T!D73 -> 225760.5 | D191: =+T!E73 -> 237048.525 | E191: =+T!F73 -> 248900.9513 | F191: =+T!G73 -> 261345.9988
A192: =+T!B74 -> 2. Taseen loppusumma (Euro) | B192: =+T!C74 -> 294776 | C192: =+T!D74 -> 300600.2667 | D192: =+T!E74 -> 315249.5578 | E192: =+T!F74 -> 337563.3859 | F192: =+T!G74 -> 366608.1067
A193: =+T!B75 -> 3. Tilikauden tulos (Euro) | B193: =+T!C75 -> 34276 | C193: =+T!D75 -> 40313.06667 | D193: =+T!E75 -> 46301.80444 | E193: =+T!F75 -> 52040.43098 | F193: =+T!G75 -> 57627.39639
A194: =+T!B76 -> 4. Voitto-osuus omistajalle (Euro) | B194: =+T!C76 -> 3213.8 | C194: =+T!D76 -> 5068.763333 | D194: =+T!E76 -> 7130.415389 | E194: =+T!F76 -> 9375.916168 | F194: =+T!G76 -> 11788.49018
A196: =+T!B78 -> Kasvu
A197: =+T!B79 -> 1. Liikevaihdon kasvu-% | C197: =+T!D79 -> 5 | D197: =+T!E79 -> 5 | E197: =+T!F79 -> 5 | F197: =+T!G79 -> 5
A198: =+T!B80 -> 2. Taseen loppusumman kasvu-% | C198: =+T!D80 -> 1.975827973 | D198: =+T!E80 -> 4.873346013 | E198: =+T!F80 -> 7.078147308 | F198: =+T!G80 -> 8.604227254
A199: =+T!B81 -> 3. Tilikauden tuloksen kasvu-% | C199: =+T!D81 -> 17.61310149 | D199: =+T!E81 -> 14.85557481 | E199: =+T!F81 -> 12.39395873 | F199: =+T!G81 -> 10.73581695
A201: =+T!B83 -> Kannattavuus
A202: =+T!B84 -> 1. Käyttökate / Liikevaihto (%) | B202: =+T!C84 -> 32.1892005 | C202: =+T!D84 -> 32.48154571 | D202: =+T!E84 -> 32.76832244 | E202: =+T!F84 -> 33.04963675 | F202: =+T!G84 -> 33.32559269
A203: =+T!B85 -> 2. Liiketulos / Liikevaihto (%) | B203: =+T!C85 -> 22.30593926 | C203: =+T!D85 -> 24.44020692 | D203: =+T!E85 -> 26.1704879 | E203: =+T!F85 -> 27.59264815 | F203: =+T!G85 -> 28.77799816
A204: =+T!B86 -> 3. Tilikauden tulos / Liikevaihto (%) | B204: =+T!C86 -> 15.94158411 | C204: =+T!D86 -> 17.85656333 | D204: =+T!E86 -> 19.5326271 | E204: =+T!F86 -> 20.90808842 | F204: =+T!G86 -> 22.05023098
A205: =+T!B87 -> 4. Sijoitetun pääoman tuotto-% | C205: =+T!D87 -> 18.71805484 | D205: =+T!E87 -> 20.63762492 | E205: =+T!F87 -> 21.78539574 | F205: =+T!G87 -> 22.28030346
A206: =+T!B88 -> 5. Oman pääoman tuotto-% | C206: =+T!D88 -> 51.97514597 | D206: =+T!E88 -> 41.04533256 | E206: =+T!F88 -> 34.24210598 | F206: =+T!G88 -> 29.6068042
A208: =+T!B90 -> Maksuvalmius
A209: =+T!B91 -> 1. Rahoitustulos / Liikevaihto | B209: =+T!C91 -> 25.82484536 | C209: =+T!D91 -> 25.89790213 | D209: =+T!E91 -> 26.13046164 | E209: =+T!F91 -> 26.36507702 | F209: =+T!G91 -> 26.59782551
A210: =+T!B92 -> 2. Quick ratio | B210: =+T!C92 -> 1.434860714 | C210: =+T!D92 -> 2.268566241 | D210: =+T!E92 -> 3.195529008 | E210: =+T!F92 -> 4.156863937 | F210: =+T!G92 -> 5.113890268
A212: =+T!B94 -> Vakavaraisuus
A213: =+T!B95 -> 1. Omavaraisuusaste | B213: =+T!C95 -> 25.0381566 | C213: =+T!D95 -> 35.74347529 | D213: =+T!E95 -> 46.01910549 | E213: =+T!F95 -> 55.20777681 | F213: =+T!G95 -> 63.01787336
A214: =+T!B96 -> 2. Rahoitustulos / Velat (%) | B214: =+T!C96 -> 23.91158493 | C214: =+T!D96 -> 28.83088334 | D214: =+T!E96 -> 34.7457762 | E214: =+T!F96 -> 41.55428117 | F214: =+T!G96 -> 49.2552485
A216: =+T!B98 -> Rahoitusriski: Taipumus kuulua konkurssiyritysten (1) tai toimivien yritysten (0) joukkoon
A217: =+T!B99 -> 1. Kolmen muuttujan P-luku | B217: =+T!C99 -> 0.4632567936 | C217: =+T!D99 -> 0.3847282173 | D217: =+T!E99 -> 0.3131473163 | E217: =+T!F99 -> 0.2547611298 | F217: =+T!G99 -> 0.2101697426
A220: =+T!B102 -> TULKINTARAPORTTI
B222: =+T!C104 -> Ennakoidut viisi vuotta:
B223: =+T!C105 -> 1 | C223: =+T!D105 -> 2 | D223: =+T!E105 -> 3 | E223: =+T!F105 -> 4 | F223: =+T!G105 -> 5
A224: =+T!B106 -> Kannattavuus
A225: =+T!B107 -> Käyttökate / Myyntituotot (%) | B225: =+T!C107 -> Positiivinen | C225: =+T!D107 -> Positiivinen | D225: =+T!E107 -> Positiivinen | E225: =+T!F107 -> Positiivinen | F225: =+T!G107 -> Positiivinen
A226: =+T!B108 -> Sijoitetun pääoman tuotto-% | C226: =+T!D108 -> Erinomainen | D226: =+T!E108 -> Erinomainen | E226: =+T!F108 -> Erinomainen | F226: =+T!G108 -> Erinomainen
A227: =+T!B109 -> Oman pääoman tuotto-% | C227: =+T!D109 -> Erinomainen | D227: =+T!E109 -> Erinomainen | E227: =+T!F109 -> Erinomainen | F227: =+T!G109 -> Erinomainen
A229: =+T!B111 -> Maksuvalmius
A230: =+T!B112 -> Rahoitustulos / Myyntituotot | B230: =+T!C112 -> Positiivinen | C230: =+T!D112 -> Positiivinen | D230: =+T!E112 -> Positiivinen | E230: =+T!F112 -> Positiivinen | F230: =+T!G112 -> Positiivinen
A231: =+T!B113 -> Quick ratio | B231: =+T!C113 -> Hyvä | C231: =+T!D113 -> Erinomainen | D231: =+T!E113 -> Erinomainen | E231: =+T!F113 -> Erinomainen | F231: =+T!G113 -> Erinomainen
A233: =+T!B115 -> Vakavaraisuus
A234: =+T!B116 -> Omavaraisuusaste | B234: =+T!C116 -> Tyydyttävä | C234: =+T!D116 -> Hyvä | D234: =+T!E116 -> Hyvä | E234: =+T!F116 -> Erinomainen | F234: =+T!G116 -> Erinomainen
A235: =+T!B117 -> Rahoitustulos / Velat (%) | B235: =+T!C117 -> Tyydyttävä | C235: =+T!D117 -> Tyydyttävä | D235: =+T!E117 -> Hyvä | E235: =+T!F117 -> Hyvä | F235: =+T!G117 -> Hyvä
A237: =+T!B119 -> Rahoitusriski
A238: =+T!B120 -> Kolmen muuttujan P-luku | B238: =+T!C120 -> Suuri riski | C238: =+T!D120 -> Kohtuullinen riski | D238: =+T!E120 -> Kohtuullinen riski | E238: =+T!F120 -> Kohtuullinen riski | F238: =+T!G120 -> Suhteellisen pieni riski
A240: =+T!B123 -> LIITEKUVIOT
A312: Tämä raportti on suuntaa-antava laskelma siitä, miten ratsastuskoulusi voisi antamillasi lähtötiedoilla menestyä viiden seuraavan vuoden aikana. Tehdyt laskelmat perustuvat omiin arvioihisi esimerkiksi yrityksesi kasvusta ja velkojen korkokannoista. Laskelmissa ei ole huomioitu erikseen arvonlisäveroa. Vastuu laskelmien hyödyntämisestä on ohjelman käyttäjällä. Copyright Vaasan Yritysinformaatio Oy.

Sheet E (hidden)
A1: 1 | B1: =+A1+1 -> 2 | C1: =+B1+1 -> 3 | D1: 4 | E1: 5 | F1: 6 | G1: 7 | H1: 8
A2: Copyright Vaasan Yritysinformaatio Oy. Kaikki tekijänoikeudet pidätetään.
A3: TOIMIVAN RATSASTUSKOULUN TILINPÄÄTÖSENNUSTE VIIDELLE VUODELLE
A5: LIIKEVAIHDON KASVUENNUSTE
B6: Lähtöoletus: | D6: Vuodet:
D7: 1 | E7: 2 | F7: 3 | G7: 4 | H7: 5
A8: Ensimmäisen vuoden liikevaihto | B8: =+K!F62 -> 215010 | D8: =+$B$8*(1+$B$9)^(D$7-1) -> 215010 | E8: =+$B$8*(1+$B$9)^(E$7-1) -> 225760.5 | F8: 237048.525 | G8: 248900.9513 | H8: 261345.9988
A9: Liikevaihdon arvioitu kasvuvauhti | B9: =+K!G48 -> 0.05
A10: Kiinteiden kulujen arvioitu kasvuvauhti | B10: =+K!G49 -> 0.03
A13: Verokanta | B13: =+K!G42 -> 0.2
A14: Lyhytaikaisen vieraan pääoman korko-% | B14: =+K!G43 -> 0.03
A15: Pitkäaikaisen vieraan pääoman korko-% | B15: =+K!G44 -> 0.02
A16: Voitto-osuus-% kertyneistä voitoista | B16: =+K!G46 -> 0.05
A17: Pitkäaikaisen velan lyhennysosuus (%) | B17: =+K!G45 -> 0.15
A18: Rahoitusomaisuus / Liikevaihto | B18: =+K!G47 -> 0.05 | C18: Minimitaso | D18: Toimivien yritysten keskiarvo
A19: Vaihto-omaisuus / Liikevaihto | B19: 0 | C19: Taso
A20: Myyntisaamisten kasvu-% | B20: 0
A21: Ostovelkojen kasvu-% | B21: 0
A23: KASSAVIRTAENNUSTE (Euro)
D25: =+D7 -> 1 | E25: =+D25+1 -> 2 | F25: =+E25+1 -> 3 | G25: 4 | H25: 5
A26: Liikevaihto | B26: %-osuus | D26: =+D8 -> 215010 | E26: =+E8 -> 225760.5 | F26: =+F8 -> 237048.525 | G26: =+G8 -> 248900.9513 | H26: =+H8 -> 261345.9988
A27: - Muuttuvat kulut
A28: Karkearehu | B28: =+K!G71/100 -> 0.08371703642 | D28: =+$B28*D$26 -> 18000 | E28: 18900 | F28: 19845 | G28: 20837.25 | H28: 21879.1125
A29: Väkirehu | B29: =+K!G72/100 -> 0.01674340728 | D29: 3600 | E29: 3780 | F29: 3969 | G29: 4167.45 | H29: 4375.8225
A30: Kivennäiset | B30: =+K!G73/100 -> 0.01674340728 | D30: 3600 | E30: 3780 | F30: 3969 | G30: 4167.45 | H30: 4375.8225
A31: Muut ruokintakustannukset | B31: =+K!G74/100 -> 0.01674340728 | D31: 3600 | E31: 3780 | F31: 3969 | G31: 4167.45 | H31: 4375.8225
A32: Kuivikekustannukset | B32: =+K!G75/100 -> 0.04185851821 | D32: 9000 | E32: 9450 | F32: 9922.5 | G32: 10418.625 | H32: 10939.55625
A33: Kengitykset | B33: =+K!G76/100 -> 0.02790567881 | D33: 6000 | E33: 6300 | F33: 6615 | G33: 6945.75 | H33: 7293.0375
A34: Madotukset | B34: =+K!G77/100 -> 0.002325473234 | D34: 500 | E34: 525 | F34: 551.25 | G34: 578.8125 | H34: 607.753125
A35: Rokotukset | B35: =+K!G78/100 -> 0.004650946468 | D35: 1000 | E35: 1050 | F35: 1102.5 | G35: 1157.625 | H35: 1215.50625
A36: Raspaukset | B36: =+K!G79/100 -> 0.004650946468 | D36: 1000 | E36: 1050 | F36: 1102.5 | G36: 1157.625 | H36: 1215.50625
A37: Muut eläinlääkärikulut | B37: =+K!G80/100 -> 0.009301892935 | D37: 2000 | E37: 2100 | F37: 2205 | G37: 2315.25 | H37: 2431.0125
A38: Varustekustannukset | B38: =+K!G81/100 -> 0.02325473234 | D38: 5000 | E38: 5250 | F38: 5512.5 | G38: 5788.125 | H38: 6077.53125
A39: Ratsastuksen opettajien palkat lisineen | B39: =+K!G82/100 -> 0.2116180643 | D39: 45500 | E39: 47775 | F39: 50163.75 | G39: 52671.9375 | H39: 55305.53438
A40: Täyshoitohevosten hoitajien palkat lisineen | B40: =+K!G83/100 -> 0.05581135761 | D40: 12000 | E40: 12600 | F40: 13230 | G40: 13891.5 | H40: 14586.075
A41: Muut muuttuvat kulut | B41: =+K!G84/100 -> 0.009301892935 | D41: 2000 | E41: 2100 | F41: 2205 | G41: 2315.25 | H41: 2431.0125
A42: = Myyntikate (menopohjainen) | B42: =+K!G85/100 -> 0.4753732385 | D42: =+D26-SUM(D28:D41) -> 102210 | E42: =+E26-SUM(E28:E41) -> 107320.5 | F42: 112686.525 | G42: 118320.8513 | H42: 124236.8938
A43: - Kiinteät kulut
A44: Vuokrakulut | B44: =+K!F89 -> 0 | D44: =+$B44*(1+$B$10)^(D$25-1) -> 0 | E44: 0 | F44: 0 | G44: 0 | H44: 0
A45: Sähkökulut | B45: =+K!F90 -> 2400 | D45: 2400 | E45: 2472 | F45: 2546.16 | G45: 2622.5448 | H45: 2701.221144
A46: Vesikulut | B46: =+K!F91 -> 1200 | D46: 1200 | E46: 1236 | F46: 1273.08 | G46: 1311.2724 | H46: 1350.610572
A47: Pohjien huolto | B47: =+K!F92 -> 3000 | D47: 3000 | E47: 3090 | F47: 3182.7 | G47: 3278.181 | H47: 3376.52643
A48: Lantalan tyhjennys | B48: =+K!F93 -> 1200 | D48: 1200 | E48: 1236 | F48: 1273.08 | G48: 1311.2724 | H48: 1350.610572
A49: Kiinteät palkkakustannukset lisineen | B49: =+K!F94 -> 24000 | D49: 24000 | E49: 24720 | F49: 25461.6 | G49: 26225.448 | H49: 27012.21144
A50: Muut kiinteät kulut | B50: =+K!F95 -> 1200 | D50: 1200 | E50: 1236 | F50: 1273.08 | G50: 1311.2724 | H50: 1350.610572
A51: = Käyttökate (menopohjainen) | D51: =+D42-SUM(D44:D50) -> 69210 | E51: =+E42-SUM(E44:E50) -> 73330.5 | F51: 77676.825 | G51: 82260.86025 | H51: 87095.10308
A52: Korkomenot | B52: automaatti | D52: =+$B$14*C$137+$B$15*C$139 -> 5115 | E52: =+$B$14*D$137+$B$15*D$139 -> 4785 | F52: =+$B$14*E$137+$B$15*E$139 -> 4159.5 | G52: =+$B$14*F$137+$B$15*F$139 -> 3627.825 | H52: =+$B$14*G$137+$B$15*G$139 -> 3175.90125
A53: Verot | B53: automaatti | D53: =+D118 -> 8569 | E53: =+E118 -> 10078.26667 | F53: =+F118 -> 11575.45111 | G53: =+G118 -> 13010.10774 | H53: =+H118 -> 14406.8491
A54: Osingot | B54: automaatti | D54: 0 | E54: =+D145 -> 3213.8 | F54: =+E145 -> 5068.763333 | G54: =+F145 -> 7130.415389 | H54: =+G145 -> 9375.916168
A55: = Rahoitustulos (menopohjainen) | D55: =+D51-SUM(D52:D54) -> 55526 | E55: =+E51-SUM(E52:E54) -> 55253.43333 | F55: 56873.11056 | G55: 58492.51212 | H55: 60136.43657
A56: - Investoinnit
A57: Hevosten hankinta | B57: =+K!F104 -> 5000 | C57: =+B57 -> 5000 | D57: =+B57 -> 5000 | E57: 0 | F57: 0 | G57: 0 | H57: 0
A58: Maa- ja vesialueet | B58: =+K!F105 -> 0 | C58: =+B58 -> 0 | D58: =+B58 -> 0 | E58: 0 | F58: 0 | G58: 0 | H58: 0
A59: Rakennukset ja rakennelmat | B59: =+K!F106 -> 5000 | C59: 5000 | D59: 5000 | E59: 0 | F59: 0 | G59: 0 | H59: 0
A60: Koneet ja kalusto | B60: =+K!F107 -> 10000 | C60: 10000 | D60: 10000 | E60: 0 | F60: 0 | G60: 0 | H60: 0
A61: Muu käyttöomaisuus | B61: =+K!F108 -> 500 | C61: 500 | D61: 500 | E61: 0 | F61: 0 | G61: 0 | H61: 0
A62: - Kassavirtamuunnos
A63: = Investointijäämä | D63: =+D55-SUM(D57:D62) -> 35026 | E63: =+E55-SUM(E57:E62) -> 55253.43333 | F63: =+F55-SUM(F57:F62) -> 56873.11056 | G63: =+G55-SUM(G57:G62) -> 58492.51212 | H63: =+H55-SUM(H57:H62) -> 60136.43657
A64: + Muun rahoitusomaisuuden vähennys | B64: automaatti | D64: =-$B$18*D$84+C125 -> -750.5 | E64: =-$B$18*E$84+D125 -> 22737.975 | F64: =-$B$18*F$84+E125 -> 46152.00708 | G64: =-$B$18*G$84+F125 -> 75848.74633 | H64: =-$B$18*H$84+G125 -> 111122.8186
A65: + Muun lyhytaikaisen vieraan pääoman lisäys | B65: =+K!F113 -> 500 | D65: =+K!F113 -> 500 | E65: 0 | F65: 0 | G65: 0 | H65: 0
A66: + Pitkäaikaisen vieraan pääoman lisäys | B66: =+K!F114 -> 15000 | C66: =+K!F31 -> 210000 | D66: =+B66-$B$17*C66 -> -16500 | E66: =-SUM($B66:D66)*$B$17 -> -31275 | F66: =-SUM($B66:E66)*$B$17 -> -26583.75 | G66: =-SUM($B66:F66)*$B$17 -> -22596.1875 | H66: =-SUM($B66:G66)*$B$17 -> -19206.75937
A67: + Oman pääoman lisäys | B67: =+K!F115 -> 5000 | D67: =+K!F115 -> 5000 | E67: 0 | F67: 0 | G67: 0 | H67: 0
A68: - Rahoitusomaisuuden lisäys (tasoitus) | B68: automaatti | D68: =+IF(SUM(D63:D67)>0,-SUM(D63:D67),0) -> -23275.5 | E68: =+IF(SUM(E63:E67)>0,-SUM(E63:E67),0) -> -46716.40833 | F68: -76441.36764 | G68: -111745.0709 | H68: -152052.4958
A69: = Netto rahoituksen jälkeen (0) | D69: =+SUM(D63:D68) -> 0 | E69: =+SUM(E63:E68) -> 0 | F69: =+SUM(F63:F68) -> 0 | G69: =+SUM(G63:G68) -> 0 | H69: =+SUM(H63:H68) -> 0
D70: =+IF(D69=0," ","Huom! Ei 0") ->  | E70: =+IF(E69=0," ","Huom! Ei 0") -> 
D71: Lyhytaikaisen velan
D72: lisäykseen
A74: Poistot: | B74: Käyttöomaisuus | C74: Poisto-% | D74: Poisto
A75: =+A57 -> Hevosten hankinta | B75: =+K!F20+K!F104 -> 30000 | C75: =+IF(K!F20=0,0,+K!G20/(K!F20+K!G20)) -> 0.1666666667 | D75: =+C75*B75 -> 5000
A76: =+A58 -> Maa- ja vesialueet | B76: =+K!F21+K!F105 -> 80000 | C76: =+IF(K!F21=0,0,+K!G21/(K!F21+K!G21)) -> 0 | D76: =+C76*B76 -> 0
A77: =+A59 -> Rakennukset ja rakennelmat | B77: =+K!F22+K!F106 -> 145000 | C77: =+IF(K!F22=0,0,+K!G22/(K!F22+K!G22)) -> 0.06666666667 | D77: 9666.666667
A78: =+A60 -> Koneet ja kalusto | B78: =+K!F23+K!F107 -> 25000 | C78: =+IF(K!F23=0,0,+K!G23/(K!F23+K!G23)) -> 0.25 | D78: 6250
A79: =+A61 -> Muu käyttöomaisuus | B79: =+K!F24+K!F108 -> 2000 | C79: =+IF(K!F24=0,0,+K!G24/(K!F24+K!G24)) -> 0.1666666667 | D79: 333.3333333
A81: TULOSLASKELMAENNUSTE (Euro)
D82: Ennusteet:
D83: =+D25 -> 1 | E83: 2 | F83: 3 | G83: 4 | H83: 5
A84: Liikevaihto | D84: 215010 | E84: 225760.5 | F84: 237048.525 | G84: 248900.9513 | H84: 261345.9988
A85: - Muuttuvat kulut
A86: Karkearehu | D86: =+D28 -> 18000 | E86: 18900 | F86: 19845 | G86: 20837.25 | H86: 21879.1125
A87: Väkirehu | D87: 3600 | E87: 3780 | F87: 3969 | G87: 4167.45 | H87: 4375.8225
A88: Kivennäiset | D88: 3600 | E88: 3780 | F88: 3969 | G88: 4167.45 | H88: 4375.8225
A89: Muut ruokintakustannukset | D89: 3600 | E89: 3780 | F89: 3969 | G89: 4167.45 | H89: 4375.8225
A90: Kuivikekustannukset | D90: 9000 | E90: 9450 | F90: 9922.5 | G90: 10418.625 | H90: 10939.55625
A91: Kengitykset | D91: 6000 | E91: 6300 | F91: 6615 | G91: 6945.75 | H91: 7293.0375
A92: Madotukset | D92: 500 | E92: 525 | F92: 551.25 | G92: 578.8125 | H92: 607.753125
A93: Rokotukset | D93: 1000 | E93: 1050 | F93: 1102.5 | G93: 1157.625 | H93: 1215.50625
A94: Raspaukset | D94: 1000 | E94: 1050 | F94: 1102.5 | G94: 1157.625 | H94: 1215.50625
A95: Muut eläinlääkärikulut | D95: 2000 | E95: 2100 | F95: 2205 | G95: 2315.25 | H95: 2431.0125
A96: Varustekustannukset | D96: 5000 | E96: 5250 | F96: 5512.5 | G96: 5788.125 | H96: 6077.53125
A97: Ratsastuksen opettajien palkat lisineen | D97: 45500 | E97: 47775 | F97: 50163.75 | G97: 52671.9375 | H97: 55305.53438
A98: Täyshoitohevosten hoitajien palkat lisineen | D98: =+D40 -> 12000 | E98: 12600 | F98: 13230 | G98: 13891.5 | H98: 14586.075
A99: Muut muuttuvat kulut | D99: =+D41 -> 2000 | E99: 2100 | F99: 2205 | G99: 2315.25 | H99: 2431.0125
A100: = Myyntikate | D100: =+D84-SUM(D86:D99) -> 102210 | E100: =+E84-SUM(E86:E99) -> 107320.5 | F100: =+F84-SUM(F86:F99) -> 112686.525 | G100: =+G84-SUM(G86:G99) -> 118320.8513 | H100: =+H84-SUM(H86:H99) -> 124236.8938
A101: - Kiinteät kulut
A102: Vuokrakulut | D102: =+D44 -> 0 | E102: 0 | F102: 0 | G102: 0 | H102: 0
A103: Sähkökulut | D103: 2400 | E103: 2472 | F103: 2546.16 | G103: 2622.5448 | H103: 2701.221144
A104: Vesikulut | D104: 1200 | E104: 1236 | F104: 1273.08 | G104: 1311.2724 | H104: 1350.610572
A105: Pohjien huolto | D105: 3000 | E105: 3090 | F105: 3182.7 | G105: 3278.181 | H105: 3376.52643
A106: Lantalan tyhjennys | D106: 1200 | E106: 1236 | F106: 1273.08 | G106: 1311.2724 | H106: 1350.610572
A107: Kiinteät palkkakustannukset lisineen | D107: 24000 | E107: 24720 | F107: 25461.6 | G107: 26225.448 | H107: 27012.21144
A108: Muut kiinteät kulut | D108: 1200 | E108: 1236 | F108: 1273.08 | G108: 1311.2724 | H108: 1350.610572
A109: = Käyttökate | D109: =+D100-SUM(D102:D108) -> 69210 | E109: =+E100-SUM(E102:E108) -> 73330.5 | F109: 77676.825 | G109: 82260.86025 | H109: 87095.10308
A110: - Poistot
A111: =+A57 -> Hevosten hankinta | C111: =+B75 -> 30000 | D111: =+C127-D127 -> 5000 | E111: =+D127-E127 -> 4166.666667 | F111: 3472.222222 | G111: 2893.518519 | H111: 2411.265432
A112: =+A58 -> Maa- ja vesialueet | C112: =+B76 -> 80000 | D112: =+C128-D128 -> 0 | E112: 0 | F112: 0 | G112: 0 | H112: 0
A113: =+A59 -> Rakennukset ja rakennelmat | C113: =+B77 -> 145000 | D113: =+C129-D129 -> 9666.666667 | E113: 9022.222222 | F113: 8420.740741 | G113: 7859.358025 | H113: 7335.400823
A114: =+A60 -> Koneet ja kalusto | C114: =+B78 -> 25000 | D114: =+C130-D130 -> 6250 | E114: 4687.5 | F114: 3515.625 | G114: 2636.71875 | H114: 1977.539062
A115: =+A61 -> Muu käyttöomaisuus | C115: =+B79 -> 2000 | D115: =+C131-D131 -> 333.3333333 | E115: 277.7777778 | F115: 231.4814815 | G115: 192.9012346 | H115: 160.7510288
A116: = Liiketulos | D116: =+D109-SUM(D111:D115) -> 47960 | E116: =+E109-SUM(E111:E115) -> 55176.33333 | F116: =+F109-SUM(F111:F115) -> 62036.75556 | G116: =+G109-SUM(G111:G115) -> 68678.36372 | H116: =+H109-SUM(H111:H115) -> 75210.14674
A117: - Korkokulut | D117: =+D52 -> 5115 | E117: =+E52 -> 4785 | F117: =+F52 -> 4159.5 | G117: =+G52 -> 3627.825 | H117: =+H52 -> 3175.90125
A118: - Verot | D118: =+IF((D116-D117)>0,$B$13*(D116-D117),0) -> 8569 | E118: =+IF((E116-E117)>0,$B$13*(E116-E117),0) -> 10078.26667 | F118: 11575.45111 | G118: 13010.10774 | H118: 14406.8491
A119: Tilikauden tulos | D119: =+D116-SUM(D117:D118) -> 34276 | E119: =+E116-SUM(E117:E118) -> 40313.06667 | F119: 46301.80444 | G119: 52040.43098 | H119: 57627.39639
A121: TASE-ENNUSTE (Euro)
A123: Taseen omaisuus | D123: Ennusteet:
A124: Lyhytaikainen: | D124: =+D83 -> 1 | E124: =+E83 -> 2 | F124: =+F83 -> 3 | G124: =+G83 -> 4 | H124: =+H83 -> 5
A125: Rahoitusomaisuus ja muu lyhytaikainen omaisuus | C125: =+K!F14 -> 10000 | D125: =+$B$18*D84-D68 -> 34026 | E125: =+$B$18*E84-E68 -> 58004.43333 | F125: =+$B$18*F84-F68 -> 88293.79389 | G125: =+$B$18*G84-G68 -> 124190.1185 | H125: =+$B$18*H84-H68 -> 165119.7957
A126: Pitkäaikainen:
A127: =+A57 -> Hevosten hankinta | C127: =+B75 -> 30000 | D127: =+C127*(1-$C75) -> 25000 | E127: =+D127*(1-$C75) -> 20833.33333 | F127: 17361.11111 | G127: 14467.59259 | H127: 12056.32716
A128: =+A58 -> Maa- ja vesialueet | C128: =+B76 -> 80000 | D128: =+C128*(1-$C76) -> 80000 | E128: 80000 | F128: 80000 | G128: 80000 | H128: 80000
A129: =+A59 -> Rakennukset ja rakennelmat | C129: =+B77 -> 145000 | D129: =+C129*(1-$C77) -> 135333.3333 | E129: 126311.1111 | F129: 117890.3704 | G129: 110031.0123 | H129: 102695.6115
A130: =+A60 -> Koneet ja kalusto | C130: =+B78 -> 25000 | D130: =+C130*(1-$C78) -> 18750 | E130: 14062.5 | F130: 10546.875 | G130: 7910.15625 | H130: 5932.617188
A131: =+A61 -> Muu käyttöomaisuus | C131: =+B79 -> 2000 | D131: =+C131*(1-$C79) -> 1666.666667 | E131: 1388.888889 | F131: 1157.407407 | G131: 964.5061728 | H131: 803.755144
A132: Yhteensä | D132: =+D125+SUM(D127:D131) -> 294776 | E132: =+E125+SUM(E127:E131) -> 300600.2667 | F132: =+F125+SUM(F127:F131) -> 315249.5578 | G132: =+G125+SUM(G127:G131) -> 337563.3859 | H132: =+H125+SUM(H127:H131) -> 366608.1067
A134: Taseen pääoma
A135: Lyhytaikainen:
A136: Lyhytaikaiset velat (maks. voitto-osuus) | D136: =+D145 -> 3213.8 | E136: =+E145 -> 5068.763333 | F136: 7130.415389 | G136: 9375.916168 | H136: 11788.49018
A137: Muu lyhytaikainen vieras pääoma | C137: =+B65+K!F30 -> 20500 | D137: =+C137-D69 -> 20500 | E137: =+D137-E69 -> 20500 | F137: =+E137-F69 -> 20500 | G137: =+F137-G69 -> 20500 | H137: =+G137-H69 -> 20500
A138: Pitkäaikainen:
A139: Pitkäaikainen vieras pääoma | C139: =+B66+K!F31 -> 225000 | D139: =+C139+D66 -> 208500 | E139: =+D139+E66 -> 177225 | F139: =+E139+F66 -> 150641.25 | G139: 128045.0625 | H139: 108838.3031
A140: Sijoitettu oma pääoma | C140: =+B67+K!F33 -> 16500 | D140: =+C140 -> 16500 | E140: =+D140+E67 -> 16500 | F140: =+E140+F67 -> 16500 | G140: =+F140+G67 -> 16500 | H140: =+G140+H67 -> 16500
A141: Kertyneet voittovarat ja muu oma pääoma | C141: =+D119+K!F32 -> 64276 | D141: =+C141-D145 -> 61062.2 | E141: =+D141+E119-E145 -> 96306.50333 | F141: =+E141+F119-F145 -> 135477.8924 | G141: =+F141+G119-G145 -> 178142.4072 | H141: =+G141+H119-H145 -> 223981.3134
A142: Yhteensä | D142: =+SUM(D136:D141) -> 309776 | E142: 315600.2667 | F142: 330249.5578 | G142: 352563.3859 | H142: 381608.1067
A144: Lisätietoja: | D144: Laskettu:
A145: Osingot kertyneistä voitoista | B145: =+B16 -> 0.05 | D145: =+IF(C141-$B145*C141>0,$B145*C141,IF(C141>0,C141,0)) -> 3213.8 | E145: =+IF(D141-$B145*D141+E119>0,$B145*(D141+E119),IF(D141+E119>0,D141+E119,0)) -> 5068.763333 | F145: =+IF(E141-$B145*E141+F119>0,$B145*(E141+F119),IF(E141+F119>0,E141+F119,0)) -> 7130.415389 | G145: =+IF(F141-$B145*F141+G119>0,$B145*(F141+G119),IF(F141+G119>0,F141+G119,0)) -> 9375.916168 | H145: =+IF(G141-$B145*G141+H119>0,$B145*(G141+H119),IF(G141+H119>0,G141+H119,0)) -> 11788.49018
C147: Tarkistus | D147: =0.05*(D141+D136) -> 3213.8 | E147: =0.05*(E141+E136) -> 5068.763333 | F147: 7130.415389 | G147: 9375.916168 | H147: 11788.49018
A150: TILINPÄÄTÖKSEN TUNNUSLUVUT
D151: =+D25 -> 1 | E151: =+E25 -> 2 | F151: =+F25 -> 3 | G151: =+G25 -> 4 | H151: =+H25 -> 5
A152: Koko
A153: 1. Liikevaihto (Euro) | D153: =+D84 -> 215010 | E153: =+E84 -> 225760.5 | F153: =+F84 -> 237048.525 | G153: =+G84 -> 248900.9513 | H153: =+H84 -> 261345.9988
A154: 2. Taseen loppusumma (Euro) | D154: =+D132 -> 294776 | E154: =+E132 -> 300600.2667 | F154: =+F132 -> 315249.5578 | G154: =+G132 -> 337563.3859 | H154: =+H132 -> 366608.1067
A155: 3. Tilikauden tulos (Euro) | D155: =+D119 -> 34276 | E155: =+E119 -> 40313.06667 | F155: =+F119 -> 46301.80444 | G155: =+G119 -> 52040.43098 | H155: =+H119 -> 57627.39639
A156: 4. Voitto-osuus omistajalle (Euro) | D156: =+D145 -> 3213.8 | E156: =+E145 -> 5068.763333 | F156: 7130.415389 | G156: 9375.916168 | H156: 11788.49018
A158: Kasvu
A159: 1. Liikevaihdon kasvu-% | E159: =100*E84/D84-100 -> 5 | F159: =100*F84/E84-100 -> 5 | G159: =100*G84/F84-100 -> 5 | H159: =100*H84/G84-100 -> 5
A160: 2. Taseen loppusumman kasvu-% | E160: =100*E132/D132-100 -> 1.975827973 | F160: =100*F132/E132-100 -> 4.873346013 | G160: =100*G132/F132-100 -> 7.078147308 | H160: =100*H132/G132-100 -> 8.604227254
A161: 3. Tilikauden tuloksen kasvu-% | E161: =100*(E119)/(D119)-100 -> 17.61310149 | F161: =100*(F119)/(E119)-100 -> 14.85557481 | G161: =100*(G119)/(F119)-100 -> 12.39395873 | H161: =100*(H119)/(G119)-100 -> 10.73581695
A163: Kannattavuus
A164: 1. Käyttökate / Liikevaihto (%) | D164: =100*D109/D84 -> 32.1892005 | E164: =100*E109/E84 -> 32.48154571 | F164: =100*F109/F84 -> 32.76832244 | G164: =100*G109/G84 -> 33.04963675 | H164: =100*H109/H84 -> 33.32559269
A165: 2. Liiketulos / Liikevaihto (%) | D165: =100*D116/D84 -> 22.30593926 | E165: =100*E116/E84 -> 24.44020692 | F165: =100*F116/F84 -> 26.1704879 | G165: =100*G116/G84 -> 27.59264815 | H165: =100*H116/H84 -> 28.77799816
A166: 3. Tilikauden tulos / Liikevaihto (%) | D166: =100*D119/D84 -> 15.94158411 | E166: =100*E119/E84 -> 17.85656333 | F166: =100*F119/F84 -> 19.5326271 | G166: =100*G119/G84 -> 20.90808842 | H166: =100*H119/H84 -> 22.05023098
A167: 4. Sijoitetun pääoman tuotto-% | E167: =100*(E119+E118+E117)/D132 -> 18.71805484 | F167: =100*(F119+F118+F117)/E132 -> 20.63762492 | G167: =100*(G119+G118+G117)/F132 -> 21.78539574 | H167: =100*(H119+H118+H117)/G132 -> 22.28030346
A168: 5. Oman pääoman tuotto-% | E168: =+IF(D140+D141>0,100*(E119)/(D140+D141),"") -> 51.97514597 | F168: =+IF(E140+E141>0,100*(F119)/(E140+E141),"") -> 41.04533256 | G168: 34.24210598 | H168: 29.6068042
A170: Maksuvalmius
A171: 1. Rahoitustulos / Liikevaihto | D171: =100*(D119+SUM(D111:D115))/D84 -> 25.82484536 | E171: =100*(E119+SUM(E111:E115))/E84 -> 25.89790213 | F171: =100*(F119+SUM(F111:F115))/F84 -> 26.13046164 | G171: =100*(G119+SUM(G111:G115))/G84 -> 26.36507702 | H171: =100*(H119+SUM(H111:H115))/H84 -> 26.59782551
A172: 2. Quick ratio | D172: =+(D125)/(D136+D137) -> 1.434860714 | E172: =+(E125)/(E136+E137) -> 2.268566241 | F172: =+(F125)/(F136+F137) -> 3.195529008 | G172: =+(G125)/(G136+G137) -> 4.156863937 | H172: =+(H125)/(H136+H137) -> 5.113890268
A174: Vakavaraisuus
A175: 1. Omavaraisuusaste | D175: =100*(D140+D141)/D142 -> 25.0381566 | E175: =100*(E140+E141)/E142 -> 35.74347529 | F175: 46.01910549 | G175: 55.20777681 | H175: 63.01787336
A176: 2. Rahoitustulos / Velat (%) | D176: =100*(D119+SUM(D111:D115))/(+D136+D137+D139) -> 23.91158493 | E176: =100*(E119+SUM(E111:E115))/(+E136+E137+E139) -> 28.83088334 | F176: =100*(F119+SUM(F111:F115))/(+F136+F137+F139) -> 34.7457762 | G176: =100*(G119+SUM(G111:G115))/(+G136+G137+G139) -> 41.55428117 | H176: =100*(H119+SUM(H111:H115))/(+H136+H137+H139) -> 49.2552485
A178: Rahoitusriski
A179: 1. Kolmen muuttujan P-luku | B179: Kriittinen arvo P* = 0,50 | D179: =1/(1+EXP(-(0.843-0.027*D175-0.039*D172-0.01*D171))) -> 0.4632567936 | E179: =1/(1+EXP(-(0.843-0.027*E175-0.039*E172-0.01*E171))) -> 0.3847282173 | F179: =1/(1+EXP(-(0.843-0.027*F175-0.039*F172-0.01*F171))) -> 0.3131473163 | G179: =1/(1+EXP(-(0.843-0.027*G175-0.039*G172-0.01*G171))) -> 0.2547611298 | H179: =1/(1+EXP(-(0.843-0.027*H175-0.039*H172-0.01*H171))) -> 0.2101697426
B180: Tulkintalause | D180: =+IF(D179>0.65,"Erittäin suuri riski",IF(D179>0.45,"Suuri riski",IF(D179>0.25,"Kohtuullinen riski",IF(D179>0.1,"Suhteellisen pieni riski","Pieni riski")))) -> Suuri riski | E180: =+IF(E179>0.65,"Erittäin suuri riski",IF(E179>0.45,"Suuri riski",IF(E179>0.25,"Kohtuullinen riski",IF(E179>0.1,"Suhteellisen pieni riski","Pieni riski")))) -> Kohtuullinen riski | F180: Kohtuullinen riski | G180: Kohtuullinen riski | H180: Suhteellisen pieni riski

Sheet T (hidden)
B1: Copyright Vaasan Yritysinformaatio Oy. Kaikki tekijänoikeudet pidätetään.
B3: ENNAKOITU TULOSLASKELMA
C4: Ennakoidut viisi vuotta:
C5: 1 | D5: 2 | E5: 3 | F5: 4 | G5: 5
B6: =+E!A84 -> Liikevaihto | C6: =+E!D84 -> 215010 | D6: =+E!E84 -> 225760.5 | E6: =+E!F84 -> 237048.525 | F6: =+E!G84 -> 248900.9513 | G6: =+E!H84 -> 261345.9988
B7: =+E!A85 -> - Muuttuvat kulut
B8: =+E!A86 -> Karkearehu | C8: =+E!D86 -> 18000 | D8: =+E!E86 -> 18900 | E8: =+E!F86 -> 19845 | F8: =+E!G86 -> 20837.25 | G8: =+E!H86 -> 21879.1125
B9: =+E!A87 -> Väkirehu | C9: =+E!D87 -> 3600 | D9: =+E!E87 -> 3780 | E9: =+E!F87 -> 3969 | F9: =+E!G87 -> 4167.45 | G9: =+E!H87 -> 4375.8225
B10: =+E!A88 -> Kivennäiset | C10: =+E!D88 -> 3600 | D10: =+E!E88 -> 3780 | E10: =+E!F88 -> 3969 | F10: =+E!G88 -> 4167.45 | G10: =+E!H88 -> 4375.8225
B11: =+E!A89 -> Muut ruokintakustannukset | C11: =+E!D89 -> 3600 | D11: =+E!E89 -> 3780 | E11: =+E!F89 -> 3969 | F11: =+E!G89 -> 4167.45 | G11: =+E!H89 -> 4375.8225
B12: =+E!A90 -> Kuivikekustannukset | C12: =+E!D90 -> 9000 | D12: =+E!E90 -> 9450 | E12: =+E!F90 -> 9922.5 | F12: =+E!G90 -> 10418.625 | G12: =+E!H90 -> 10939.55625
B13: =+E!A91 -> Kengitykset | C13: =+E!D91 -> 6000 | D13: =+E!E91 -> 6300 | E13: =+E!F91 -> 6615 | F13: =+E!G91 -> 6945.75 | G13: =+E!H91 -> 7293.0375
B14: =+E!A92 -> Madotukset | C14: =+E!D92 -> 500 | D14: =+E!E92 -> 525 | E14: =+E!F92 -> 551.25 | F14: =+E!G92 -> 578.8125 | G14: =+E!H92 -> 607.753125
B15: =+E!A93 -> Rokotukset | C15: =+E!D93 -> 1000 | D15: =+E!E93 -> 1050 | E15: =+E!F93 -> 1102.5 | F15: =+E!G93 -> 1157.625 | G15: =+E!H93 -> 1215.50625
B16: =+E!A94 -> Raspaukset | C16: =+E!D94 -> 1000 | D16: =+E!E94 -> 1050 | E16: =+E!F94 -> 1102.5 | F16: =+E!G94 -> 1157.625 | G16: =+E!H94 -> 1215.50625
B17: =+E!A95 -> Muut eläinlääkärikulut | C17: =+E!D95 -> 2000 | D17: =+E!E95 -> 2100 | E17: =+E!F95 -> 2205 | F17: =+E!G95 -> 2315.25 | G17: =+E!H95 -> 2431.0125
B18: =+E!A96 -> Varustekustannukset | C18: =+E!D96 -> 5000 | D18: =+E!E96 -> 5250 | E18: =+E!F96 -> 5512.5 | F18: =+E!G96 -> 5788.125 | G18: =+E!H96 -> 6077.53125
B19: =+E!A97 -> Ratsastuksen opettajien palkat lisineen | C19: =+E!D97 -> 45500 | D19: =+E!E97 -> 47775 | E19: =+E!F97 -> 50163.75 | F19: =+E!G97 -> 52671.9375 | G19: =+E!H97 -> 55305.53438
B20: =+E!A98 -> Täyshoitohevosten hoitajien palkat lisineen | C20: =+E!D98 -> 12000 | D20: =+E!E98 -> 12600 | E20: =+E!F98 -> 13230 | F20: =+E!G98 -> 13891.5 | G20: =+E!H98 -> 14586.075
B21: =+E!A99 -> Muut muuttuvat kulut | C21: =+E!D99 -> 2000 | D21: =+E!E99 -> 2100 | E21: =+E!F99 -> 2205 | F21: =+E!G99 -> 2315.25 | G21: =+E!H99 -> 2431.0125
B22: =+E!A100 -> = Myyntikate | C22: =+E!D100 -> 102210 | D22: =+E!E100 -> 107320.5 | E22: =+E!F100 -> 112686.525 | F22: =+E!G100 -> 118320.8513 | G22: =+E!H100 -> 124236.8938
B23: =+E!A101 -> - Kiinteät kulut
B24: =+E!A102 -> Vuokrakulut | C24: =+E!D102 -> 0 | D24: =+E!E102 -> 0 | E24: =+E!F102 -> 0 | F24: =+E!G102 -> 0 | G24: =+E!H102 -> 0
B25: =+E!A103 -> Sähkökulut | C25: =+E!D103 -> 2400 | D25: =+E!E103 -> 2472 | E25: =+E!F103 -> 2546.16 | F25: =+E!G103 -> 2622.5448 | G25: =+E!H103 -> 2701.221144
B26: =+E!A104 -> Vesikulut | C26: =+E!D104 -> 1200 | D26: =+E!E104 -> 1236 | E26: =+E!F104 -> 1273.08 | F26: =+E!G104 -> 1311.2724 | G26: =+E!H104 -> 1350.610572
B27: =+E!A105 -> Pohjien huolto | C27: =+E!D105 -> 3000 | D27: =+E!E105 -> 3090 | E27: =+E!F105 -> 3182.7 | F27: =+E!G105 -> 3278.181 | G27: =+E!H105 -> 3376.52643
B28: =+E!A106 -> Lantalan tyhjennys | C28: =+E!D106 -> 1200 | D28: =+E!E106 -> 1236 | E28: =+E!F106 -> 1273.08 | F28: =+E!G106 -> 1311.2724 | G28: =+E!H106 -> 1350.610572
B29: =+E!A107 -> Kiinteät palkkakustannukset lisineen | C29: =+E!D107 -> 24000 | D29: =+E!E107 -> 24720 | E29: =+E!F107 -> 25461.6 | F29: =+E!G107 -> 26225.448 | G29: =+E!H107 -> 27012.21144
B30: Muut kiinteät kulut | C30: =+E!D108 -> 1200 | D30: =+E!E108 -> 1236 | E30: =+E!F108 -> 1273.08 | F30: =+E!G108 -> 1311.2724 | G30: =+E!H108 -> 1350.610572
B31: =+E!A109 -> = Käyttökate | C31: =+E!D109 -> 69210 | D31: =+E!E109 -> 73330.5 | E31: =+E!F109 -> 77676.825 | F31: =+E!G109 -> 82260.86025 | G31: =+E!H109 -> 87095.10308
B32: =+E!A110 -> - Poistot
B33: =+E!A111 -> Hevosten hankinta | C33: =+E!D111 -> 5000 | D33: =+E!E111 -> 4166.666667 | E33: =+E!F111 -> 3472.222222 | F33: =+E!G111 -> 2893.518519 | G33: =+E!H111 -> 2411.265432
B34: =+E!A112 -> Maa- ja vesialueet | C34: =+E!D112 -> 0 | D34: =+E!E112 -> 0 | E34: =+E!F112 -> 0 | F34: =+E!G112 -> 0 | G34: =+E!H112 -> 0
B35: =+E!A113 -> Rakennukset ja rakennelmat | C35: =+E!D113 -> 9666.666667 | D35: =+E!E113 -> 9022.222222 | E35: =+E!F113 -> 8420.740741 | F35: =+E!G113 -> 7859.358025 | G35: =+E!H113 -> 7335.400823
B36: =+E!A114 -> Koneet ja kalusto | C36: =+E!D114 -> 6250 | D36: =+E!E114 -> 4687.5 | E36: =+E!F114 -> 3515.625 | F36: =+E!G114 -> 2636.71875 | G36: =+E!H114 -> 1977.539062
B37: =+E!#REF! ->  | C37: =+E!#REF! ->  | D37: =+E!#REF! ->  | E37: =+E!#REF! ->  | F37: =+E!#REF! ->  | G37: =+E!#REF! -> 
B38: =+E!A115 -> Muu käyttöomaisuus | C38: =+E!D115 -> 333.3333333 | D38: =+E!E115 -> 277.7777778 | E38: =+E!F115 -> 231.4814815 | F38: =+E!G115 -> 192.9012346 | G38: =+E!H115 -> 160.7510288
B39: =+E!A116 -> = Liiketulos | C39: =+E!D116 -> 47960 | D39: =+E!E116 -> 55176.33333 | E39: =+E!F116 -> 62036.75556 | F39: =+E!G116 -> 68678.36372 | G39: =+E!H116 -> 75210.14674
B40: =+E!A117 -> - Korkokulut | C40: =+E!D117 -> 5115 | D40: =+E!E117 -> 4785 | E40: =+E!F117 -> 4159.5 | F40: =+E!G117 -> 3627.825 | G40: =+E!H117 -> 3175.90125
B41: =+E!A118 -> - Verot | C41: =+E!D118 -> 8569 | D41: =+E!E118 -> 10078.26667 | E41: =+E!F118 -> 11575.45111 | F41: =+E!G118 -> 13010.10774 | G41: =+E!H118 -> 14406.8491
B42: =+E!A119 -> Tilikauden tulos | C42: =+E!D119 -> 34276 | D42: =+E!E119 -> 40313.06667 | E42: =+E!F119 -> 46301.80444 | F42: =+E!G119 -> 52040.43098 | G42: =+E!H119 -> 57627.39639
B44: ENNAKOITU TASE
C45: =+C4 -> Ennakoidut viisi vuotta:
C46: 1 | D46: 2 | E46: 3 | F46: 4 | G46: 5
B47: =+E!A123 -> Taseen omaisuus
B48: =+E!A124 -> Lyhytaikainen:
B49: =+E!A125 -> Rahoitusomaisuus ja muu lyhytaikainen omaisuus | C49: =+E!D125 -> 34026 | D49: =+E!E125 -> 58004.43333 | E49: =+E!F125 -> 88293.79389 | F49: =+E!G125 -> 124190.1185 | G49: =+E!H125 -> 165119.7957
B50: =+E!A126 -> Pitkäaikainen:
B51: =+E!A127 -> Hevosten hankinta | C51: =+E!D127 -> 25000 | D51: =+E!E127 -> 20833.33333 | E51: =+E!F127 -> 17361.11111 | F51: =+E!G127 -> 14467.59259 | G51: =+E!H127 -> 12056.32716
B52: =+E!A128 -> Maa- ja vesialueet | C52: =+E!D128 -> 80000 | D52: =+E!E128 -> 80000 | E52: =+E!F128 -> 80000 | F52: =+E!G128 -> 80000 | G52: =+E!H128 -> 80000
B53: =+E!A129 -> Rakennukset ja rakennelmat | C53: =+E!D129 -> 135333.3333 | D53: =+E!E129 -> 126311.1111 | E53: =+E!F129 -> 117890.3704 | F53: =+E!G129 -> 110031.0123 | G53: =+E!H129 -> 102695.6115
B54: =+E!A130 -> Koneet ja kalusto | C54: =+E!D130 -> 18750 | D54: =+E!E130 -> 14062.5 | E54: =+E!F130 -> 10546.875 | F54: =+E!G130 -> 7910.15625 | G54: =+E!H130 -> 5932.617188
B55: =+E!#REF! ->  | C55: =+E!#REF! ->  | D55: =+E!#REF! ->  | E55: =+E!#REF! ->  | F55: =+E!#REF! ->  | G55: =+E!#REF! -> 
B56: =+E!A131 -> Muu käyttöomaisuus | C56: =+E!D131 -> 1666.666667 | D56: =+E!E131 -> 1388.888889 | E56: =+E!F131 -> 1157.407407 | F56: =+E!G131 -> 964.5061728 | G56: =+E!H131 -> 803.755144
B57: =+E!A132 -> Yhteensä | C57: =+E!D132 -> 294776 | D57: =+E!E132 -> 300600.2667 | E57: =+E!F132 -> 315249.5578 | F57: =+E!G132 -> 337563.3859 | G57: =+E!H132 -> 366608.1067
B59: =+E!A134 -> Taseen pääoma
B60: =+E!A135 -> Lyhytaikainen:
B61: =+E!A136 -> Lyhytaikaiset velat (maks. voitto-osuus) | C61: =+E!D136 -> 3213.8 | D61: =+E!E136 -> 5068.763333 | E61: =+E!F136 -> 7130.415389 | F61: =+E!G136 -> 9375.916168 | G61: =+E!H136 -> 11788.49018
B62: =+E!A137 -> Muu lyhytaikainen vieras pääoma | C62: =+E!D137 -> 20500 | D62: =+E!E137 -> 20500 | E62: =+E!F137 -> 20500 | F62: =+E!G137 -> 20500 | G62: =+E!H137 -> 20500
B63: =+E!A138 -> Pitkäaikainen:
B64: =+E!A139 -> Pitkäaikainen vieras pääoma | C64: =+E!D139 -> 208500 | D64: =+E!E139 -> 177225 | E64: =+E!F139 -> 150641.25 | F64: =+E!G139 -> 128045.0625 | G64: =+E!H139 -> 108838.3031
B65: =+E!A140 -> Sijoitettu oma pääoma | C65: =+E!D140 -> 16500 | D65: =+E!E140 -> 16500 | E65: =+E!F140 -> 16500 | F65: =+E!G140 -> 16500 | G65: =+E!H140 -> 16500
B66: =+E!A141 -> Kertyneet voittovarat ja muu oma pääoma | C66: =+E!D141 -> 61062.2 | D66: =+E!E141 -> 96306.50333 | E66: =+E!F141 -> 135477.8924 | F66: =+E!G141 -> 178142.4072 | G66: =+E!H141 -> 223981.3134
B67: =+E!A142 -> Yhteensä | C67: =+E!D142 -> 309776 | D67: =+E!E142 -> 315600.2667 | E67: =+E!F142 -> 330249.5578 | F67: =+E!G142 -> 352563.3859 | G67: =+E!H142 -> 381608.1067
B69: ENNAKOIDUT TUNNUSLUVUT
C70: =+C4 -> Ennakoidut viisi vuotta:
C71: =+E!D151 -> 1 | D71: =+E!E151 -> 2 | E71: =+E!F151 -> 3 | F71: =+E!G151 -> 4 | G71: =+E!H151 -> 5
B72: Koko
B73: =+E!A153 -> 1. Liikevaihto (Euro) | C73: =+E!D153 -> 215010 | D73: =+E!E153 -> 225760.5 | E73: =+E!F153 -> 237048.525 | F73: =+E!G153 -> 248900.9513 | G73: =+E!H153 -> 261345.9988
B74: =+E!A154 -> 2. Taseen loppusumma (Euro) | C74: =+E!D154 -> 294776 | D74: =+E!E154 -> 300600.2667 | E74: =+E!F154 -> 315249.5578 | F74: =+E!G154 -> 337563.3859 | G74: =+E!H154 -> 366608.1067
B75: =+E!A155 -> 3. Tilikauden tulos (Euro) | C75: =+E!D155 -> 34276 | D75: =+E!E155 -> 40313.06667 | E75: =+E!F155 -> 46301.80444 | F75: =+E!G155 -> 52040.43098 | G75: =+E!H155 -> 57627.39639
B76: =+E!A156 -> 4. Voitto-osuus omistajalle (Euro) | C76: =+E!D156 -> 3213.8 | D76: =+E!E156 -> 5068.763333 | E76: =+E!F156 -> 7130.415389 | F76: =+E!G156 -> 9375.916168 | G76: =+E!H156 -> 11788.49018
B78: =+E!A158 -> Kasvu
B79: =+E!A159 -> 1. Liikevaihdon kasvu-% | D79: =+E!E159 -> 5 | E79: =+E!F159 -> 5 | F79: =+E!G159 -> 5 | G79: =+E!H159 -> 5
B80: =+E!A160 -> 2. Taseen loppusumman kasvu-% | D80: =+E!E160 -> 1.975827973 | E80: =+E!F160 -> 4.873346013 | F80: =+E!G160 -> 7.078147308 | G80: =+E!H160 -> 8.604227254
B81: =+E!A161 -> 3. Tilikauden tuloksen kasvu-% | D81: =+E!E161 -> 17.61310149 | E81: =+E!F161 -> 14.85557481 | F81: =+E!G161 -> 12.39395873 | G81: =+E!H161 -> 10.73581695
B83: =+E!A163 -> Kannattavuus
B84: =+E!A164 -> 1. Käyttökate / Liikevaihto (%) | C84: =+E!D164 -> 32.1892005 | D84: =+E!E164 -> 32.48154571 | E84: =+E!F164 -> 32.76832244 | F84: =+E!G164 -> 33.04963675 | G84: =+E!H164 -> 33.32559269
B85: =+E!A165 -> 2. Liiketulos / Liikevaihto (%) | C85: =+E!D165 -> 22.30593926 | D85: =+E!E165 -> 24.44020692 | E85: =+E!F165 -> 26.1704879 | F85: =+E!G165 -> 27.59264815 | G85: =+E!H165 -> 28.77799816
B86: =+E!A166 -> 3. Tilikauden tulos / Liikevaihto (%) | C86: =+E!D166 -> 15.94158411 | D86: =+E!E166 -> 17.85656333 | E86: =+E!F166 -> 19.5326271 | F86: =+E!G166 -> 20.90808842 | G86: =+E!H166 -> 22.05023098
B87: =+E!A167 -> 4. Sijoitetun pääoman tuotto-% | D87: =+E!E167 -> 18.71805484 | E87: =+E!F167 -> 20.63762492 | F87: =+E!G167 -> 21.78539574 | G87: =+E!H167 -> 22.28030346
B88: =+E!A168 -> 5. Oman pääoman tuotto-% | D88: =+E!E168 -> 51.97514597 | E88: =+E!F168 -> 41.04533256 | F88: =+E!G168 -> 34.24210598 | G88: =+E!H168 -> 29.6068042
B90: =+E!A170 -> Maksuvalmius
B91: =+E!A171 -> 1. Rahoitustulos / Liikevaihto | C91: =+E!D171 -> 25.82484536 | D91: =+E!E171 -> 25.89790213 | E91: =+E!F171 -> 26.13046164 | F91: =+E!G171 -> 26.36507702 | G91: =+E!H171 -> 26.59782551
B92: =+E!A172 -> 2. Quick ratio | C92: =+E!D172 -> 1.434860714 | D92: =+E!E172 -> 2.268566241 | E92: =+E!F172 -> 3.195529008 | F92: =+E!G172 -> 4.156863937 | G92: =+E!H172 -> 5.113890268
B94: =+E!A174 -> Vakavaraisuus
B95: =+E!A175 -> 1. Omavaraisuusaste | C95: =+E!D175 -> 25.0381566 | D95: =+E!E175 -> 35.74347529 | E95: =+E!F175 -> 46.01910549 | F95: =+E!G175 -> 55.20777681 | G95: =+E!H175 -> 63.01787336
B96: =+E!A176 -> 2. Rahoitustulos / Velat (%) | C96: =+E!D176 -> 23.91158493 | D96: =+E!E176 -> 28.83088334 | E96: =+E!F176 -> 34.7457762 | F96: =+E!G176 -> 41.55428117 | G96: =+E!H176 -> 49.2552485
B98: Rahoitusriski: Taipumus kuulua konkurssiyritysten (1) tai toimivien yritysten (0) joukkoon
B99: =+E!A179 -> 1. Kolmen muuttujan P-luku | C99: =+E!D179 -> 0.4632567936 | D99: =+E!E179 -> 0.3847282173 | E99: =+E!F179 -> 0.3131473163 | F99: =+E!G179 -> 0.2547611298 | G99: =+E!H179 -> 0.2101697426
B102: TULKINTARAPORTTI
C104: =+C4 -> Ennakoidut viisi vuotta:
C105: 1 | D105: 2 | E105: 3 | F105: 4 | G105: 5
B106: Kannattavuus
B107: Käyttökate / Myyntituotot (%) | C107: =+IF(C84>0,"Positiivinen","Negatiivinen") -> Positiivinen | D107: =+IF(D84>0,"Positiivinen","Negatiivinen") -> Positiivinen | E107: =+IF(E84>0,"Positiivinen","Negatiivinen") -> Positiivinen | F107: =+IF(F84>0,"Positiivinen","Negatiivinen") -> Positiivinen | G107: =+IF(G84>0,"Positiivinen","Negatiivinen") -> Positiivinen
B108: Sijoitetun pääoman tuotto-% | D108: =+IF(D87>15,"Erinomainen",IF(D87>10,"Hyvä",IF(D87>6,"Tyydyttävä",IF(D87>3,"Välttävä","Heikko")))) -> Erinomainen | E108: =+IF(E87>15,"Erinomainen",IF(E87>10,"Hyvä",IF(E87>6,"Tyydyttävä",IF(E87>3,"Välttävä","Heikko")))) -> Erinomainen | F108: =+IF(F87>15,"Erinomainen",IF(F87>10,"Hyvä",IF(F87>6,"Tyydyttävä",IF(F87>3,"Välttävä","Heikko")))) -> Erinomainen | G108: =+IF(G87>15,"Erinomainen",IF(G87>10,"Hyvä",IF(G87>6,"Tyydyttävä",IF(G87>3,"Välttävä","Heikko")))) -> Erinomainen
B109: Oman pääoman tuotto-% | D109: =+IF(D88="","",IF(D88>20,"Erinomainen",IF(D88>15,"Hyvä",IF(D88>10,"Tyydyttävä",IF(D88>5,"Välttävä","Heikko"))))) -> Erinomainen | E109: =+IF(E88="","",IF(E88>20,"Erinomainen",IF(E88>15,"Hyvä",IF(E88>10,"Tyydyttävä",IF(E88>5,"Välttävä","Heikko"))))) -> Erinomainen | F109: Erinomainen | G109: Erinomainen
B111: Maksuvalmius
B112: Rahoitustulos / Myyntituotot | C112: =+IF(C91>0,"Positiivinen","Negatiivinen") -> Positiivinen | D112: =+IF(D91>0,"Positiivinen","Negatiivinen") -> Positiivinen | E112: =+IF(E91>0,"Positiivinen","Negatiivinen") -> Positiivinen | F112: =+IF(F91>0,"Positiivinen","Negatiivinen") -> Positiivinen | G112: =+IF(G91>0,"Positiivinen","Negatiivinen") -> Positiivinen
B113: Quick ratio | C113: =+IF(C92>1.5,"Erinomainen",IF(C92>1,"Hyvä",IF(C92>0.5,"Tyydyttävä",IF(C92>0.3,"Välttävä","Heikko")))) -> Hyvä | D113: =+IF(D92>1.5,"Erinomainen",IF(D92>1,"Hyvä",IF(D92>0.5,"Tyydyttävä",IF(D92>0.3,"Välttävä","Heikko")))) -> Erinomainen | E113: =+IF(E92>1.5,"Erinomainen",IF(E92>1,"Hyvä",IF(E92>0.5,"Tyydyttävä",IF(E92>0.3,"Välttävä","Heikko")))) -> Erinomainen | F113: =+IF(F92>1.5,"Erinomainen",IF(F92>1,"Hyvä",IF(F92>0.5,"Tyydyttävä",IF(F92>0.3,"Välttävä","Heikko")))) -> Erinomainen | G113: =+IF(G92>1.5,"Erinomainen",IF(G92>1,"Hyvä",IF(G92>0.5,"Tyydyttävä",IF(G92>0.3,"Välttävä","Heikko")))) -> Erinomainen
B115: Vakavaraisuus
B116: Omavaraisuusaste | C116: =+IF(C95>50,"Erinomainen",IF(C95>35,"Hyvä",IF(C95>25,"Tyydyttävä",IF(C95>15,"Välttävä","Heikko")))) -> Tyydyttävä | D116: =+IF(D95>50,"Erinomainen",IF(D95>35,"Hyvä",IF(D95>25,"Tyydyttävä",IF(D95>15,"Välttävä","Heikko")))) -> Hyvä | E116: Hyvä | F116: Erinomainen | G116: Erinomainen
B117: Rahoitustulos / Velat (%) | C117: =+IF(1/(C96/100)<1,"Erinomainen",IF(1/(C96/100)<3,"Hyvä",IF(1/(C96/100)<5,"Tyydyttävä",IF(1/(C96/100)<10,"Välttävä","Heikko")))) -> Tyydyttävä | D117: =+IF(1/(D96/100)<1,"Erinomainen",IF(1/(D96/100)<3,"Hyvä",IF(1/(D96/100)<5,"Tyydyttävä",IF(1/(D96/100)<10,"Välttävä","Heikko")))) -> Tyydyttävä | E117: Hyvä | F117: Hyvä | G117: Hyvä
B119: Rahoitusriski
B120: Kolmen muuttujan P-luku | C120: =+IF(C99>0.65,"Erittäin suuri riski",IF(C99>0.45,"Suuri riski",IF(C99>0.25,"Kohtuullinen riski",IF(C99>0.1,"Suhteellisen pieni riski","Pieni riski")))) -> Suuri riski | D120: =+IF(D99>0.65,"Erittäin suuri riski",IF(D99>0.45,"Suuri riski",IF(D99>0.25,"Kohtuullinen riski",IF(D99>0.1,"Suhteellisen pieni riski","Pieni riski")))) -> Kohtuullinen riski | E120: Kohtuullinen riski | F120: Kohtuullinen riski | G120: Suhteellisen pieni riski
B123: LIITEKUVIOT
J124: Vuosi | K124: 1 | L124: 2 | M124: 3 | N124: 4 | O124: 5
J125: Käyttökate | K125: =+C31 -> 69210 | L125: =+D31 -> 73330.5 | M125: =+E31 -> 77676.825 | N125: =+F31 -> 82260.86025 | O125: =+G31 -> 87095.10308
J126: Liiketulos | K126: =+C39 -> 47960 | L126: =+D39 -> 55176.33333 | M126: =+E39 -> 62036.75556 | N126: =+F39 -> 68678.36372 | O126: =+G39 -> 75210.14674
J127: Tilikauden tulos | K127: =+C42 -> 34276 | L127: =+D42 -> 40313.06667 | M127: =+E42 -> 46301.80444 | N127: =+F42 -> 52040.43098 | O127: =+G42 -> 57627.39639
J145: Vuosi | K145: 1 | L145: 2 | M145: 3 | N145: 4 | O145: 5
J146: Sijoitetun pääoman tuotto-% | L146: =+D87 -> 18.71805484 | M146: =+E87 -> 20.63762492 | N146: =+F87 -> 21.78539574 | O146: =+G87 -> 22.28030346
J147: Quick ratio | K147: =+C92 -> 1.434860714 | L147: =+D92 -> 2.268566241 | M147: =+E92 -> 3.195529008 | N147: =+F92 -> 4.156863937 | O147: =+G92 -> 5.113890268
J148: Omavaraisuusaste | K148: =+C95 -> 25.0381566 | L148: 35.74347529 | M148: 46.01910549 | N148: 55.20777681 | O148: 63.01787336
J165: Vuosi | K165: 1 | L165: 2 | M165: 3 | N165: 4 | O165: 5
J166: Rahoitusriski | K166: =+C99 -> 0.4632567936 | L166: =+D99 -> 0.3847282173 | M166: 0.3131473163 | N166: 0.2547611298 | O166: 0.2101697426
J167: Kriittinen taso | K167: 0.5 | L167: 0.5 | M167: 0.5 | N167: 0.5 | O167: 0.5
